Cogmind - Beta 15 @@@ ROGUE MODE // 2025.05.10 @ 02:11:27 Player: Cogchaaaan Result: Destroyed by G-73 Enforcer with Phase Gun Performance ------------- Evolutions (8) 4000 Regions Visited (28) 5600 Robots Destroyed (500) 2500 Value Destroyed (27034) 27034 Prototype IDs (179) 3580 Alien Tech Used (6) 1200 Bonus (16723) 16723 TOTAL SCORE: 60637 Bonus ------- Triggered High Security 500 High Alert Combat Kills 7316 Follower Combat Kills 1670 Registered with UFD 300 Met Optimus in HQ 500 Met Data Miner 300 Met Zhirov 300 Built Enhanced Grunts 300 A7 Reached Mainframe 300 Met R17 at Cetus 500 Used Core Reset Matrix 3000 Met R17 at Research 2000 Scanned by Researcher 500 Friendly Fire -763 Cogmind --------- Core Integrity 0/1450 Matter 183/300 Energy 325/325 System Corruption 37% Temperature Cool (9) Movement Walking (170) Ox1 Location -2/Protoforge Parts ------- > --- POWER (3) -------- Reinforced Antimatter Reactor > --- PROPULSION (6) --- Experimental VSS Leg Experimental VSS Leg > --- UTILITY (11) ----- Experimental Heat Sink Experimental Cooling System Concept Antigrav Storage Unit Spectral Analyzer Experimental Core Analyzer Mini Quantum Capacitor Graphene Brace Concept Network Penetrator A0-MCA's Component Scanner > --- WEAPON (4) ------- Null Cannon Concept Deflector Sword Experimental Jetlance > --- INVENTORY (25) --- Experimental VSS Leg Experimental Coolant Injector Concept Chromion Battery (800) Concept Antimissile System Concept Network Penetrator Concept Lightning Penetrator Null Cannon Peak State ------------ > --- POWER ------------ Particle Reactor Experimental Antimatter Reactor Experimental Antimatter Reactor > --- PROPULSION ------- Experimental Biometal Leg Experimental Biometal Leg Experimental Armored Exoskeleton > --- UTILITY ---------- Concept Antigrav Storage Unit Spectral Analyzer Advanced Melee Analysis Suite Core Analyzer Femtoactuators Concept Phase Shift Module Concept RG22 Armor Concept Network Penetrator A0-MCA's Component Scanner Concept Navigation Harness > --- WEAPON ----------- Enhanced Nova Cannon Null Cannon Concept Deflector Sword Experimental Jetlance > --- INVENTORY -------- Particle Reactor Concept Zero-point Core Concept Zero-point Core Experimental VSS Leg Experimental VSS Leg Experimental Armored Exoskeleton Experimental Cooling System Experimental Coolant Injector Concept Chromion Battery Mini Quantum Capacitor Advanced Phase Shifter Concept Core Shell Graphene Brace Concept Beam Splitter Experimental EM Shield Experimental Force Field Concept Antimissile System Concept Network Penetrator Transdimensional Reconstructor Concept Lightning Penetrator Null Cannon Micro-nuke Launcher [Rating: 274] Favorites ----------- Power Improved Ion Engine Engine Improved Ion Engine Power Core Enhanced Fission Core Reactor Improved Quantum Reactor Propulsion Light Treads Treads Light Treads Leg Experimental Armored Exoskeleton Flight Unit Improved VTOL Module Utility High-capacity Storage Unit Device Improved Heat Sink Storage High-capacity Storage Unit Processor Advanced Signal Interpreter Hackware System Mapper Protection Medium Regenerative Plating Weapon Advanced Beam Cannon Energy Gun Advanced Beam Rifle Energy Cannon Advanced Beam Cannon Ballistic Gun Enhanced Autogun Launcher Micro-nuke Launcher Special Weapon Plasma Cutter Impact Weapon Core Stripper Slashing Weapon Concept Deflector Sword Piercing Weapon Experimental Jetlance Build | -11 -10 -10 -9 -9 -8 -8 -8 -8 -6 -6 -6 -6 -5 -5 -5 -5 -5 -4 -4 -4 -4 -4 -4 -3 -3 -2 -2 -2 ------- Run | Yrd Mat Min Mat Min Mat Sto Rec Scr Fac Low Low Dat Pro Fac Upp Upp Zhi Pro Fac Ext Cet Arc Hub Res Tes Res Qua Frg Slots Evolved 16 | . . . 2 . 2 . . . 4 . . . . 2 . . . . 2 . . . . 2 . 2 . . Power 2 | . . . . . . . . . . . . . . 1 . . . . . . . . . . . 1 . . Propulsion 4 | . . . 1 . . . . . 1 . . . . . . . . . 1 . . . . . . 1 . . Utility 9 | . . . . . 2 . . . 3 . . . . 1 . . . . 1 . . . . 2 . . . . Weapon 1 | . . . 1 . . . . . . . . . . . . . . . . . . . . . . . . . Parts Attached 254 | 8 11 3 19 2 25 16 2 2 14 . . . 3 4 . 1 5 5 7 11 13 2 1 9 13 10 16 52 Power 44 | 1 2 . 1 1 3 1 1 . 1 . . . 1 1 . . 1 2 2 3 3 . . 1 4 1 2 12 Engine 13 | 1 2 . 1 1 3 1 1 . 1 . . . . 1 . . . . 1 . . . . . . . . . Core 9 | . . . . . . . . . . . . . 1 . . . . 1 . 2 1 . . . 1 . . 3 Reactor 22 | . . . . . . . . . . . . . . . . . 1 1 1 1 2 . . 1 3 1 2 9 Propulsion 61 | 2 4 . 12 . 9 3 . 1 2 . . . 1 2 . . . 1 3 4 1 . . 1 2 . 4 9 Treads 48 | . 3 . 11 . 8 3 . 1 2 . . . 1 2 . . . 1 3 4 1 . . 1 2 . 4 1 Leg 11 | 2 1 . . . . . . . . . . . . . . . . . . . . . . . . . . 8 Wheel . | . . . . . . . . . . . . . . . . . . . . . . . . . . . . . Hover . | . . . . . . . . . . . . . . . . . . . . . . . . . . . . . Flight 2 | . . . 1 . 1 . . . . . . . . . . . . . . . . . . . . . . . Utility 90 | 2 2 3 1 1 5 3 1 1 6 . . . 1 1 . 1 3 . 2 3 6 1 . 7 4 3 7 26 Device 48 | 1 1 3 . 1 4 1 . 1 2 . . . . 1 . . 2 . . 1 3 1 . 3 2 3 5 13 Storage 8 | 1 1 . 1 . . 1 . . . . . . . . . . . . . . 1 . . . . . 1 2 Processor 15 | . . . . . 1 1 1 . 3 . . . . . . . . . . 1 . . . 2 1 . . 5 Hackware 5 | . . . . . . . . . . . . . 1 . . . . . 1 . . . . 1 1 . . 1 Protection 14 | . . . . . . . . . 1 . . . . . . 1 1 . 1 1 2 . . 1 . . 1 5 Artifact . | . . . . . . . . . . . . . . . . . . . . . . . . . . . . . Weapon 59 | 3 3 . 5 . 8 9 . . 5 . . . . . . . 1 2 . 1 3 1 1 . 3 6 3 5 Energy Gun 12 | 2 2 . 1 . 1 4 . . . . . . . . . . . . . . . 1 . . 1 . . . Energy Cannon 27 | . . . 2 . 3 1 . . 4 . . . . . . . 1 1 . 1 1 . 1 . 2 6 2 2 Ballistic Gun 8 | 1 1 . 1 . 2 2 . . . . . . . . . . . . . . 1 . . . . . . . Ballistic Cannon . | . . . . . . . . . . . . . . . . . . . . . . . . . . . . . Launcher 5 | . . . 1 . . 1 . . 1 . . . . . . . . 1 . . . . . . . . . 1 Special Weapon 2 | . . . . . . 1 . . . . . . . . . . . . . . 1 . . . . . . . Impact Weapon 2 | . . . . . 1 . . . . . . . . . . . . . . . . . . . . . 1 . Slashing Weapon 2 | . . . . . 1 . . . . . . . . . . . . . . . . . . . . . . 1 Piercing Weapon 1 | . . . . . . . . . . . . . . . . . . . . . . . . . . . . 1 Special Melee Weapon . | . . . . . . . . . . . . . . . . . . . . . . . . . . . . . Unidentified Prototypes 43 | . . 1 3 . 2 6 . . 3 . . . . . . 1 3 . . . 6 . . 3 5 . 10 . Corrupted Parts 3 | . . . . . . . . . . . . . . . . . . . . . . . . . 3 . . . System Corruption 16 | . . . . . . . . . . . . . . . . . . . . . . . . . 16 . . . Parts Lost 79 | . 5 . 2 1 3 2 . . . . 1 . 2 1 . . . 2 3 2 3 . . 2 2 6 6 36 Power 20 | . 2 . 1 . . . . . . . . . 1 . . . . . 1 . 1 . . . 1 1 2 10 Propulsion 14 | . 1 . . . 2 1 . . . . . . 1 1 . . . . . . . . . . 1 2 1 4 Utility 28 | . . . . 1 1 . . . . . 1 . . . . . . 1 2 1 1 . . . . 1 2 17 Weapon 17 | . 2 . 1 . . 1 . . . . . . . . . . . 1 . 1 1 . . 2 . 2 1 5 Highest Loss Streak 6 | . 1 . 1 1 1 2 . . . . 1 . 2 1 . . . 2 3 2 2 . . 2 2 2 2 6 To Critical Strikes 2 | . . . . . . 1 . . . . . . . . . . . . . . . . . . . . . 1 Average Backups 18 | 2 5 9 14 18 19 19 20 20 19 20 19 20 18 16 16 17 19 19 18 18 22 24 24 23 21 20 21 20 Power 1 | . . . . 1 1 1 1 1 1 2 2 2 1 . . 1 1 1 1 2 3 4 4 4 3 2 2 2 Propulsion 4 | 1 3 3 5 7 6 5 6 6 5 5 5 5 4 3 3 3 3 3 2 3 4 5 5 4 3 1 1 2 Utility 7 | . . 3 4 6 7 8 8 7 5 5 4 4 4 3 4 4 6 7 6 7 7 10 10 9 9 11 10 11 Weapon 4 | . 1 2 2 3 3 3 4 4 5 6 6 7 7 7 7 7 6 5 5 4 5 4 4 4 5 4 6 4 Tool/Special . | . . . . . . . . . . . . . . . . . . . . . . . . . . . . . Unused Backups 58 | . . . 4 1 6 . . 3 2 . . . . . . . 1 1 1 3 3 1 . 3 2 2 4 21 Power 13 | . . . . 1 . . . . . . . . . . . . . 1 . 2 . . . . 2 . 3 4 Propulsion 10 | . . . . . . . . . . . . . . . . . 1 . . . 1 1 . 2 . . 1 4 Utility 22 | . . . 2 . 2 . . 3 . . . . . . . . . . 1 1 1 . . 1 . . . 11 Weapon 13 | . . . 2 . 4 . . . 2 . . . . . . . . . . . 1 . . . . 2 . 2 Tool/Special . | . . . . . . . . . . . . . . . . . . . . . . . . . . . . . Average Slot Usage (%) 91 | . 98 100 96 99 99 98 100 100 99 100 99 82 99 99 100 98 97 96 91 91 77 81 82 80 74 79 81 79 Engine 4 | . 12 14 11 11 9 9 9 9 6 6 6 6 2 5 5 5 1 . 2 . . . . . . . . . Core 1 | . . . . . . . . . . . . . 3 5 5 5 5 4 2 4 9 5 5 3 . . 4 3 Reactor 3 | . . . . . . . . . . . . . . . . . 3 5 5 5 . 5 5 4 8 11 7 6 Treads 20 | . 21 28 32 33 26 26 27 27 26 26 26 26 25 22 23 22 22 22 25 23 15 15 15 13 12 13 12 5 Leg 1 | . 6 . . . . . . . . . . . . . . . . . . . . . . . . . . 5 Device 16 | . 14 14 10 10 17 17 18 18 18 20 21 26 21 22 23 20 15 15 16 10 14 15 15 19 17 15 17 14 Storage 6 | . 14 14 11 11 9 9 9 9 6 6 6 6 6 5 5 5 5 5 5 5 5 5 5 4 4 4 4 4 Processor 10 | . . . . . 9 9 9 9 14 13 13 13 13 11 11 11 11 11 10 10 10 10 10 11 13 16 13 15 Hackware 2 | . . . . . . . . . . . . . 4 5 5 5 5 5 5 5 5 5 5 4 4 4 4 3 Protection 2 | . . . . . . . . . 5 6 4 . . . . 2 5 5 5 8 5 5 5 4 4 . . 3 Energy Gun 3 | . 18 28 12 . . 5 9 9 2 . . . . . . . . . . . . 1 5 4 . . . . Energy Cannon 11 | . . . 9 22 21 12 9 9 10 13 13 1 13 11 11 11 13 14 15 18 8 10 10 8 2 10 15 9 Ballistic Gun 4 | . 9 . 8 11 4 8 9 9 5 6 6 1 6 5 5 5 5 2 . . 2 5 2 . . . . . Peak Build Rating 274 | 7 9 18 17 19 33 34 34 36 64 62 63 61 62 66 61 61 78 81 92 111 139 145 145 165 154 186 217 274 Average Rating 94 | 5 7 9 14 18 28 31 33 35 53 60 60 48 59 61 60 60 70 74 84 98 121 134 141 151 144 172 194 233 On Entrance 73 | . 7 9 10 17 19 33 32 34 36 61 61 61 61 59 57 61 61 78 69 92 111 132 145 141 145 148 182 212 Naked Turns . | . . . . . . . . . . . . . . . . . . . . . . . . . . . . . Heaviest Build 202 | 11 32 32 57 57 62 62 58 58 75 74 75 72 72 74 73 80 96 103 98 125 148 151 153 169 141 177 185 202 Greatest Support 280 | 20 40 40 60 60 62 62 62 64 92 92 92 92 92 92 82 82 92 92 133 150 180 180 180 185 185 197 270 280 Greatest Overweight (x) 1 | 1 . . . . 1 1 . . 1 . . . . 1 . . 1 1 . . . . . . . . 1 1 Average Overweight (x) . | . . . . . . . . . . . . . . . . . . . . . . . . . . . . . Largest Inventory Capacity 25 | 8 15 15 20 20 20 20 20 20 20 20 20 20 20 20 20 20 20 20 20 20 25 25 25 25 25 25 25 25 Average Capacity 20 | 7 11 15 15 20 20 20 20 20 20 20 20 20 20 20 20 20 20 20 20 20 24 25 25 25 25 25 25 25 Most Carried 25 | 4 8 10 19 18 20 20 20 20 20 20 20 20 20 17 17 20 20 20 20 20 25 25 25 25 25 25 25 25 Average Carried 19 | 2 5 9 14 17 19 19 20 19 19 20 19 20 18 16 16 18 19 19 18 19 23 25 25 24 24 23 24 23 Final Capacity 25 | 8 15 15 20 20 20 20 20 20 20 20 20 20 20 20 20 20 20 20 20 20 25 25 25 25 25 25 25 25 Final Carried 25 | 3 7 10 18 18 20 20 20 20 20 20 20 20 18 16 17 20 20 19 20 20 25 25 25 25 25 25 24 7 Class Distribution -------------------- 28% | Scavenger-Gunner 10% | Scavenger-Skirmisher 9% | Commander-Gunner 7% | Mutant 7% | Gunner 6% | Hacker-Gladiator 6% | Hacker-Skirmisher 5% | Skirmisher 5% | Scavenger-Mutant 3% | Infiltrator-Skirmisher 3% | Scavenger-Tank Dominant Class ---------------- Mutant | -10/Materials Mutant | -10/Mines Scavenger-Gunner | -9/Materials Scavenger-Gunner | -9/Mines Scavenger-Gunner | -8/Materials Gunner | -8/Storage Scavenger-Gunner | -8/Recycling Commander-Gunner | -8/Scraptown Commander-Skirmisher | -6/Factory Scavenger-Skirmisher | -6/Lower Caves Scavenger-Skirmisher | -6/Lower Caves Scavenger-Mutant | -6/Data Miner Skirmisher | -5/Proximity Caves Scavenger-Skirmisher | -5/Factory Infiltrator-Skirmisher | -5/Upper Caves Infiltrator-Skirmisher | -5/Upper Caves Skirmisher | -5/Zhirov Skirmisher | -4/Proximity Caves Infiltrator-Skirmisher | -4/Factory Scavenger-Tank | -4/Extension Scavenger-Tank | -4/Cetus Scavenger-Gunner | -4/Archives Scavenger-Gunner | -4/Hub_04(d) Scavenger-Gunner | -3/Research Scavenger-Mutant | -3/Testing Scavenger-Gunner | -2/Research Hacker-Skirmisher | -2/Quarantine Hacker-Gladiator | -2/Protoforge Resources | -11 -10 -10 -9 -9 -8 -8 -8 -8 -6 -6 -6 -6 -5 -5 -5 -5 -5 -4 -4 -4 -4 -4 -4 -3 -3 -2 -2 -2 ----------- Run | Yrd Mat Min Mat Min Mat Sto Rec Scr Fac Low Low Dat Pro Fac Upp Upp Zhi Pro Fac Ext Cet Arc Hub Res Tes Res Qua Frg Matter Collected 9157 | 285 158 26 588 59 760 671 102 20 385 79 61 . 146 71 13 52 187 125 547 205 247 63 30 318 336 649 589 2385 Remotely . | . . . . . . . . . . . . . . . . . . . . . . . . . . . . . Salvage Created 26830 | 83 597 173 1669 261 2340 1689 531 . 594 163 100 . 146 80 . . 303 201 740 2282 304 209 236 998 681 2500 1405 8545 Parts 1245 | 7 29 16 91 18 114 90 28 . 18 3 7 . 1 . . . 5 8 23 85 26 14 12 35 25 122 44 424 Haulers Intercepted 24 | . 2 . 6 . 5 5 . . 2 . . . . . . . . . 1 . . . . 3 . . . . Recyclers Shooed 21 | . 1 . 2 . 1 6 1 . 2 . . . . . . . . . . 1 . . 1 1 1 4 . . Parts Field Recycled . | . . . . . . . . . . . . . . . . . . . . . . . . . . . . . Retrieved Matter . | . . . . . . . . . . . . . . . . . . . . . . . . . . . . . Parts Self-Destructed 22 | . . . . . . . . . . 4 7 . 1 . . . 3 7 . . . . . . . . . . Prevented 4 | . . . . . . . . . . 1 1 . 2 . . . . . . . . . . . . . . . Kills | -11 -10 -10 -9 -9 -8 -8 -8 -8 -6 -6 -6 -6 -5 -5 -5 -5 -5 -4 -4 -4 -4 -4 -4 -3 -3 -2 -2 -2 ------- Run | Yrd Mat Min Mat Min Mat Sto Rec Scr Fac Low Low Dat Pro Fac Upp Upp Zhi Pro Fac Ext Cet Arc Hub Res Tes Res Qua Frg Combat Hostiles Destroyed 384 | . 14 8 34 7 45 27 9 . 6 3 4 . 2 1 . . . 10 6 22 3 . 2 7 12 26 12 124 Melee 51 | . . . . . . . . . . . . . . . . . . . . . . . . . . . . 51 Guns 74 | . 14 8 23 3 7 10 7 . 1 . 1 . . . . . . . . . . . . . . . . . Cannons 167 | . . . 8 4 27 16 2 . 4 2 3 . 2 1 . . . 2 6 15 3 . 2 5 11 21 6 27 AOE 40 | . . . 2 . 7 . . . . . . . . . . . . 8 . . . . . . . . 1 22 Classes Destroyed 27 | 2 4 1 5 . 2 . 2 . . . . . . . . . . . . 1 . . . 2 . . 3 5 Worker 9 | . . . 1 . 2 1 . . . . . . . . . . . . . 1 . . . 2 . . 2 . Builder 15 | . . 1 . . 2 1 . . . . . . . . . . . . . 3 . . 2 1 . 1 1 3 Tunneler 2 | 1 . 1 . . . . . . . . . . . . . . . . . . . . . . . . . . Hauler 24 | . 2 . 6 . 5 5 . . 2 . . . . . . . . . 1 . . . . 3 . . . . Recycler 20 | 1 1 . 4 1 1 1 2 . . . . . . . . . . . 1 5 . . . . . 3 . . Mechanic 2 | . . . . . . . . . . . . . . . . . . . . . . . . . . . . 2 Operator 8 | . . . 1 . 1 1 . . . . . . . . . . . . . . . 3 . . . 1 1 . Watcher 22 | . 1 . 4 . 4 2 . . 1 . . . . . . . . . 3 . 1 . . 2 . 2 1 1 Swarmer 53 | . 3 6 7 4 7 4 1 . . 1 4 . . . . . . 7 . 4 . . . . 5 . . . Saboteur 3 | . . . . . . . . . . . . . . . . . . . . . . . . . . . . 3 Grunt 128 | . 11 2 17 3 26 10 . . 3 1 . . 1 . . . . 1 . 2 . . 1 3 . 5 5 37 Brawler 9 | . . . 1 . 1 . . . . . . . . . . . . . . . . . . 1 . . . 6 Duelist 14 | . . . 1 . 1 1 . . . . . . . . . . . . . 3 . . . . . 1 . 7 Protector 3 | . . . . . . . 3 . . . . . . . . . . . . . . . . . . . . . Researcher 10 | . . . . . . . . . . . . . . . . . . . . . . . . . . . 2 8 Sentry 60 | . . . 8 . 8 11 4 . 2 1 . . 1 1 . . . 1 . 7 . . 1 1 . 2 . 12 Hunter 19 | . . . . . 1 1 . . . . . . . . . . . . 2 5 . . . . 2 2 2 4 Programmer 52 | . . . . . . . 1 . 1 . . . . . . . . 1 4 . . . . . 5 16 3 21 Heavy 1 | . . . . . 1 . . . . . . . . . . . . . . . . . . . . . . . Q-Series 6 | . . . . . . . . . . . . . . . . . . . . . . . . . . . 1 5 Behemoth 1 | . . . . . . . . . . . . . . . . . . . . 1 . . . . . . . . Cetus Guard 3 | . . . . . . . . . . . . . . . . . . . . . 3 . . . . . . . Enhanced Grunt 2 | . . . . . . . . . . . . . . . . . . . . . . 1 1 . . . . . Decapitator 11 | . . . . . . . . . . . . . . . . . . . . . . . . . . . . 11 Immortal 6 | . . . . . . . . . . . . . . . . . . . . . . . . . . . . 6 Investigator 1 | . . . . . . . . . . . . . . . . . . . . . . . . . . . . 1 Striker 2 | . . . . . . . . . . . . . . . . . . . . . . . . 1 . . . 1 Executioner 3 | . . . . . . . . . . . . . . . . . . . . . . . . 1 . . . 2 Alpha 7 2 | . . . . . . . . . . . . . . . . . . . . . . . . . . . . 2 Fortress 1 | . . . . . . . . . . . . . . . . . . . . . . . . . . . 1 . V-Series 7 | . . . . . . . . . . . . . . . . . . . . . . . . . . . . 7 Best Kill Streak 13 | 1 4 3 8 7 7 7 5 . 3 3 4 . 1 1 . . . 5 3 7 3 2 2 4 7 12 8 13 Combat Bots Only 12 | . 3 3 7 7 6 7 5 . 2 3 4 . 1 1 . . . 5 2 6 2 . 1 4 7 8 5 12 Max Kills in Single Turn 4 | 1 1 1 2 2 3 2 1 . 1 1 1 . 1 1 . . . 4 1 2 1 1 1 1 1 2 2 3 Gunslinging . | . . . . . . . . . . . . . . . . . . . . . . . . . . . . . Exploded 4 | . . . 2 . 2 . . . . . . . . . . . . 4 . . . . . . . . 1 3 Melee 1 | . . . . . . . . . . . . . . . . . . . . . . . . . . . . 1 Uniques/NPCs Destroyed 1 | . . . . . . . . . . . . . . . . . . . . . 1 . . . . . . . A7 (-4/Cetus) Combat | -11 -10 -10 -9 -9 -8 -8 -8 -8 -6 -6 -6 -6 -5 -5 -5 -5 -5 -4 -4 -4 -4 -4 -4 -3 -3 -2 -2 -2 -------- Run | Yrd Mat Min Mat Min Mat Sto Rec Scr Fac Low Low Dat Pro Fac Upp Upp Zhi Pro Fac Ext Cet Arc Hub Res Tes Res Qua Frg Hostile Shots Fired 2447 | . 75 27 70 21 142 106 15 . 91 84 15 . 10 8 . . . 34 48 76 60 5 20 45 81 154 100 1160 Missed 765 | . 15 11 20 5 44 19 7 . 37 33 3 . 5 1 . . . 7 20 19 20 1 5 13 19 39 20 402 Intercepted 7 | . . . . . . . . . . . . . . . . . . . . . . . . . . . . 7 Hits 1682 | . 60 16 50 16 98 87 8 . 54 51 12 . 5 7 . . . 27 28 57 40 4 15 32 62 115 80 758 Melee 63 | . . . . . 1 1 . . . . . . . . . . . . . . . . . . . . . 61 Projectile 1619 | . 60 16 50 16 97 86 8 . 54 51 12 . 5 7 . . . 27 28 57 40 4 15 32 62 115 80 697 AOE 20 | . . . . . . . . . . . . . . . . . . . . . . . . . . . . 20 Critical Strikes 135 | . . . 3 . 4 1 . . . . . . . . . . . 2 1 3 5 . 1 2 3 8 3 99 Actively Blocked 76 | . . . . . . . . . . . . . . . . . . . . . . . . . . 2 1 73 Part Disruptions 7 | . . . . . . . . . . . . . . . . . . . . . . . . . . 2 1 4 Damage Taken 31187 | . 723 152 607 146 1580 1199 118 . 591 472 192 . 126 171 . . . 471 437 1226 943 125 311 754 1326 2507 1975 15035 Core 2599 | . 116 42 54 22 205 155 31 . 66 29 18 . . 25 . . . 38 . 149 38 . . 108 68 67 88 1280 Absorbed by Shields 4315 | . . . . . . . . . . . . . . . . . . . . 8 195 . . . . . . 4112 Reduced by Siege Mode 636 | . . . . . . . . . . . . . . . . . . . . . . . . 4 59 144 123 306 Redirected to Shielding 179 | . . . . . . . . . . . . . . . . . . . 9 . . . . . . . . 170 Ignored by Resistances 3551 | . . . . . . . . . . . . . . . . . . . . . . . . . . . . 3551 Regen/Repaired (Parts) 3452 | . . . 287 . 306 282 . . . . . . . 228 . . . . . . . 57 62 206 327 803 136 758 Core Remaining (%) 74 | 100 . 36 . 81 . . . 28 . . . . 86 . . . . 93 . . . . 83 . 86 . . . Volleys Fired 1464 | 5 74 12 80 9 119 99 18 . 41 12 14 . 13 7 . 2 3 23 35 51 21 27 20 82 75 171 70 381 Largest 4 | 2 2 2 3 3 3 3 3 . 3 2 3 . 3 3 . 1 4 3 3 4 4 1 1 1 1 1 1 2 Hottest 250 | 60 130 130 159 159 204 161 154 . 166 115 140 . 140 140 . 35 175 205 205 205 195 35 35 110 130 130 120 250 Shots Fired 2424 | 10 144 24 206 20 334 269 54 . 102 22 24 . 23 15 . 2 12 31 84 176 47 28 20 81 76 172 71 377 Gun 673 | 10 144 24 167 9 85 135 36 . 40 . 5 . 5 4 . . 3 1 . . 3 . . 2 . . . . Cannon 1693 | . . . 36 11 238 131 18 . 62 22 19 . 18 11 . 2 9 20 84 176 42 28 20 79 76 172 71 348 Launcher 56 | . . . 3 . 11 3 . . . . . . . . . . . 10 . . . . . . . . . 29 Special 2 | . . . . . . . . . . . . . . . . . . . . . 2 . . . . . . . Kinetic 375 | 5 63 . 61 9 78 89 18 . 31 . 5 . 5 4 . . 3 1 . . 3 . . . . . . . Thermal 1770 | 5 81 24 142 11 245 177 36 . 71 22 19 . 18 11 . 2 9 20 84 176 42 28 20 77 68 132 24 226 Explosive 56 | . . . 3 . 11 3 . . . . . . . . . . . 10 . . . . . . . . . 29 Electromagnetic 221 | . . . . . . . . . . . . . . . . . . . . . . . . 4 8 40 47 122 Robot Hit Streak 26 | 4 10 5 11 9 20 15 26 . 16 8 2 . 8 18 . . 21 6 13 14 14 9 5 18 12 15 10 21 Robot Miss Streak 8 | 1 8 8 8 4 4 4 1 . 2 4 3 . 2 . . . 1 1 3 6 3 1 3 2 2 3 4 6 Penetration Max 1 | . . . . . . . . . . . . . . . . . . . . . 1 . . . . . . . Secondary Targets 3 | . 1 1 1 . . . . . . . . . . . . . . . . . . . . . . . . . Max Gunslinging Chain 1 | . 1 1 1 . . . . . . . . . . . . . . . . . . . . . . . . . Capacitor 802 | . . . . . . . . . . . . . . . . . . . . . 11 28 20 81 76 172 71 343 Shots Hit Robots 1606 | 7 101 20 138 11 192 150 35 . 67 11 6 . 9 10 . . 5 13 43 101 34 23 9 62 47 90 38 384 Core Hits 899 | 3 64 30 160 8 92 52 13 . 18 4 4 . 4 3 . . 3 18 19 55 15 10 7 23 17 38 18 221 Critical Kills 12 | . . . 1 . 2 1 . . . . . . . . . . . . 1 3 . . . . . . 1 3 Critical Parts Destroyed 1 | . . . . . 1 . . . . . . . . . . . . . . . . . . . . . . . Critical Strikes 118 | . . . 1 . 3 3 2 . . . . . . . . . . . 1 3 . . . . . . 3 102 Burn 4 | . . . . . . 2 2 . . . . . . . . . . . . . . . . . . . . . Meltdown 11 | . . . 1 . 2 . . . . . . . . . . . . . 1 3 . . . . . . 1 3 Destroy 2 | . . . . . 1 1 . . . . . . . . . . . . . . . . . . . . . . Corrupt 4 | . . . . . . . . . . . . . . . . . . . . . . . . . . . 2 2 Sever 1 | . . . . . . . . . . . . . . . . . . . . . . . . . . . . 1 Impale 96 | . . . . . . . . . . . . . . . . . . . . . . . . . . . . 96 Melee Attacks 272 | . . . . . 3 . . . . . . . . . . . . . . . 1 . . . . . 1 267 Kinetic 1 | . . . . . . . . . . . . . . . . . . . . . . . . . . . 1 . Impact 1 | . . . . . 1 . . . . . . . . . . . . . . . . . . . . . . . Slashing 34 | . . . . . 2 . . . . . . . . . . . . . . . 1 . . . . . . 31 Piercing 236 | . . . . . . . . . . . . . . . . . . . . . . . . . . . . 236 Sneak Attacks 8 | . . . . . . . . . . . . . . . . . . . . . 1 . . . . . . 7 Combat Hostiles 2 | . . . . . . . . . . . . . . . . . . . . . . . . . . . . 2 Follow-up Attacks 25 | . . . . . . . . . . . . . . . . . . . . . . . . . . . . 25 Martial Strikes 4 | . . . . . . . . . . . . . . . . . . . . . . . . . . . . 4 Damage Inflicted 60228 | 72 1045 201 2410 266 4913 3094 793 . 1693 336 208 . 222 243 . . 241 1139 1498 3955 1148 802 352 2139 1861 4399 1873 25325 Guns 6515 | 72 1025 196 1762 100 816 1321 452 . 453 . 33 . 53 51 . . 22 20 . . 108 . . 31 . . . . Cannons 33843 | . . . 432 153 3103 1662 254 . 1240 336 175 . 169 192 . . 219 253 1498 3919 995 802 352 1967 1861 4367 1690 8204 Explosions 8721 | . . . 202 . 988 65 . . . . . . . . . . . 866 . . . . . . . . 183 6417 Melee 10749 | . . . . . . . . . . . . . . . . . . . . . 45 . . . . . . 10704 Ramming 400 | . 20 5 14 13 6 46 87 . . . . . . . . . . . . 36 . . . 141 . 32 . . Kinetic 3139 | 24 321 . 368 100 761 751 174 . 353 . 33 . 53 51 . . 22 20 . . 108 . . . . . . . Thermal 30842 | 48 704 196 1826 153 3158 2232 532 . 1340 336 175 . 169 192 . . 219 253 1498 3919 995 802 352 1880 1647 2972 494 4750 Explosive 8538 | . . . 202 . 988 65 . . . . . . . . . . . 866 . . . . . . . . . 6417 Electromagnetic 6560 | . . . . . . . . . . . . . . . . . . . . . . . . 118 214 1395 1379 3454 Impact . | . . . . . . . . . . . . . . . . . . . . . . . . . . . . . Slashing 1506 | . . . . . . . . . . . . . . . . . . . . . 45 . . . . . . 1461 Piercing 9243 | . . . . . . . . . . . . . . . . . . . . . . . . . . . . 9243 Highest Corruption 36 | . . . . . . . . . 1 1 1 1 1 . . . . 2 5 6 6 6 . 3 23 15 18 36 Average Corruption 9 | . . . . . . . . . 1 1 1 1 1 . . . . 2 3 5 6 4 . 2 5 8 15 18 Corruption Purged 6 | . . . . . . . . . . . . . . . . . . . . . . 6 . . . . . . Corruption Blocked . | . . . . . . . . . . . . . . . . . . . . . . . . . . . . . Effects 464 | . . . . . . . . . 2 . 4 1 3 . . . . 4 21 43 18 4 . 17 29 65 66 187 Message Errors 102 | . . . . . . . . . . . . 1 1 . . . . 1 5 11 7 . . 3 6 13 14 40 Matter Fused 120 | . . . . . . . . . . . 1 . 1 . . . . 1 10 10 6 1 . 8 4 18 18 42 Heat Flow Errors 45 | . . . . . . . . . . . . . 1 . . . . 1 . 6 . . . 1 3 5 7 21 Energy Discharges 56 | . . . . . . . . . 1 . 2 . . . . . . . 3 2 2 . . 1 6 12 5 22 Parts Rejected 10 | . . . . . . . . . . . . . . . . . . . 1 . . . . . . . 1 8 Parts Fused 6 | . . . . . . . . . . . . . . . . . . . . . . . . . 1 1 2 2 Data Loss (minor) 45 | . . . . . . . . . . . 1 . . . . . . . . 5 . 1 . 1 5 9 8 15 Data Loss (major) 16 | . . . . . . . . . 1 . . . . . . . . . . 2 . 1 . . 2 2 2 6 Misfires 22 | . . . . . . . . . . . . . . . . . . 1 1 . 3 1 . 1 1 3 4 7 Alerts 10 | . . . . . . . . . . . . . . . . . . . . 3 . . . . 1 . 2 4 Misdirections 8 | . . . . . . . . . . . . . . . . . . . . . . . . . . . . 8 Weapon Failures 24 | . . . . . . . . . . . . . . . . . . . 1 4 . . . 2 . 2 3 12 Overload Shots 5 | . . . . . . . . . . . . . . . . . . . 5 . . . . . . . . . Overflow Damage 2650 | . . . 3 . 58 13 22 . 4 . 9 . . . . . 35 47 77 48 . 3 . 100 103 345 121 1662 Projectiles 956 | . . . 3 . 13 10 22 . 4 . 9 . . . . . 35 . 77 32 . 3 . 45 103 345 50 205 Explosions 327 | . . . . . 45 3 . . . . . . . . . . . 47 . . . . . . . . 71 161 Melee 1367 | . . . . . . . . . . . . . . . . . . . . 16 . . . 55 . . . 1296 Knockbacks 4 | . 1 1 . . . . . . . . . . . . . . . . . . . . . 2 . . . . Impact 4 | . 1 1 . . . . . . . . . . . . . . . . . . . . . 2 . . . . Kinetic . | . . . . . . . . . . . . . . . . . . . . . . . . . . . . . Secondary . | . . . . . . . . . . . . . . . . . . . . . . . . . . . . . Self-Inflicted Damage 213 | . . . 26 . 35 . . . . . . . . . . . . . . . . . . . . . 51 101 Shots 5 | . . . 1 . 1 . . . . . . . . . . . . . . . . . . . . . 1 2 Rammed 33 | . 4 2 3 1 1 7 7 . . . . . . . . . . . . 1 . . . 4 . 3 . . Targets Rammed 38 | . 4 3 3 2 1 8 7 . . . . . . . . . . . . 1 . . . 6 . 3 . . Kicked . | . . . . . . . . . . . . . . . . . . . . . . . . . . . . . Crushed 5 | . . 1 . 1 . 1 . . . . . . . . . . . . . . . . . 2 . . . . Highest Temperature 444 | 20 240 147 294 170 262 198 187 . 191 16 2 . 180 13 . . . 239 . 183 40 . . 161 240 444 334 269 Average Temperature 77 | 12 67 55 78 117 79 79 96 . 68 16 1 . 93 8 . . . 68 . 71 12 . . 35 74 99 68 67 Received Heat Transfer 3925 | . 378 30 186 24 648 315 27 . 162 144 . . 18 36 . . . 27 . 130 62 . 117 147 . 72 234 1168 Effects 8 | . 2 . . . . . . . . . . . . . . . . . . . . . . . . 1 . 5 Shutdowns 1 | . . . . . . . . . . . . . . . . . . . . . . . . . . 1 . . Energy Bleed 2 | . . . . . . . . . . . . . . . . . . . . . . . . . . . . 2 Interference 5 | . 2 . . . . . . . . . . . . . . . . . . . . . . . . . . 3 Siege Activations 41 | . . . . . . . . . . . . . . . . . . . . . . . . 1 3 14 6 17 Total Turns 593 | . . . . . . . . . . . . . . . . . . . . . . . . 7 34 223 41 288 Longest Duration 74 | . . . . . . . . . . . . . . . . . . . . . . . . 7 16 46 14 74 Martial Activations . | . . . . . . . . . . . . . . . . . . . . . . . . . . . . . Shielding Activations . | . . . . . . . . . . . . . . . . . . . . . . . . . . . . . Robots Disrupted 1 | . . . . . . . . . . . . . . . . . . . . . . . . 1 . . . . Combat Hostiles 1 | . . . . . . . . . . . . . . . . . . . . . . . . 1 . . . . Robots Corrupted 31 | . . . . . . . . . . . . . . . . . . . . . . . . . 1 6 4 20 Combat Hostiles 29 | . . . . . . . . . . . . . . . . . . . . . . . . . 1 5 4 19 Parts Fried 70 | . . . . . . . . . . . . . . . . . . . . 2 . . . 2 3 13 19 31 Impact Corruptions 3 | . . . . . . . . . . . . . . . . . . . . 1 . . . 2 . . . . Robots Melted 24 | . . . 1 . 5 1 . . 1 1 . . . . . . . . 1 7 . . . 3 . . 1 3 Combat Hostiles 20 | . . . 1 . 4 1 . . 1 1 . . . . . . . . . 7 . . . 2 . . . 3 Parts Melted 136 | . 1 . 2 1 18 7 2 . 6 4 . . 1 4 . . 1 4 5 21 . 3 1 12 16 6 11 10 Heat Transferred 42255 | 100 1185 240 2490 259 5698 4144 1083 . 2333 600 300 . 300 350 . . 350 350 2240 6175 1500 1250 550 2887 2150 2146 322 3253 Parts Sabotaged 4 | . . . . . . . . . . . . . . . . . . . . . . . . . . . . 4 Parts Stolen . | . . . . . . . . . . . . . . . . . . . . . . . . . . . . . Parts Stripped 18 | . . . . . . . . . . . . . . . . . . . . . . . . . . . 18 . Power Chain Reactions 1 | . . . . . . . . . . . . . . . . . . . . . . . . . . . 1 . Alert | -11 -10 -10 -9 -9 -8 -8 -8 -8 -6 -6 -6 -6 -5 -5 -5 -5 -5 -4 -4 -4 -4 -4 -4 -3 -3 -2 -2 -2 ------- Run | Yrd Mat Min Mat Min Mat Sto Rec Scr Fac Low Low Dat Pro Fac Upp Upp Zhi Pro Fac Ext Cet Arc Hub Res Tes Res Qua Frg Maximum Alert Level 5 | . . . 1 1 2 2 . . . . . . . . . . . . . 3 2 1 2 1 . 2 1 5 Low Security (%) 56 | 100 100 100 63 61 61 3 100 . 100 . . . . 100 . . . . 100 58 . 2 32 93 100 26 71 16 Level 1 19 | . . . 36 38 29 26 . . . . . . . . . . . . . 24 25 97 55 6 . 52 28 8 Level 2 14 | . . . . . 8 70 . . . . . . . . . . . . . 5 74 . 11 . . 20 . 23 Level 3 2 | . . . . . . . . . . . . . . . . . . . . 12 . . . . . . . 12 Level 4 1 | . . . . . . . . . . . . . . . . . . . . . . . . . . . . 11 Level 5 3 | . . . . . . . . . . . . . . . . . . . . . . . . . . . . 17 High Security 1 | . . . . . . . . . . . . . . . . . . . . . . . . . . . . 9 Max Security . | . . . . . . . . . . . . . . . . . . . . . . . . . . . . . Peak Influence 3114 | 5 100 82 361 262 465 624 132 . 75 . . . . 45 . . . . 109 876 525 358 425 222 156 508 318 3114 Initial 476 | . . 22 . 132 41 195 132 . . . . . . . . . . . 2 . 476 170 84 222 48 . 284 42 Average 320 | 1 32 19 165 180 194 453 21 . 17 . . . . 5 . . . . 30 262 440 287 243 81 32 256 170 1051 Influence Increases 14749 | 10 427 200 1085 165 1446 1085 236 . 243 60 90 . 40 74 . . 15 220 336 1530 342 230 531 260 438 1037 505 4144 Destroy 0b10 Robot/C 8440 | . 280 160 680 140 900 540 120 . 120 60 80 . 40 20 . . . 200 120 700 160 80 200 140 240 520 280 2660 Destroy 0b10 Robot/NC 570 | 10 20 10 80 5 75 55 25 . 15 . . . . . . . 15 . 25 55 10 15 20 40 . 35 25 35 Destroy Leader 1476 | . 66 30 190 20 218 164 . . 46 . 10 . . 10 . . . 20 38 82 . . 54 40 40 124 32 292 Allied During Kill 926 | . . . . . . . . . 16 . . . . . . . . . . 494 131 95 190 . . . . . Successful Hack 431 | . 16 . 76 . 24 47 . . 35 . . . . 23 . . . . 14 31 . . 12 18 27 60 18 30 Select Force Hacks 90 | . . . . . . . 90 . . . . . . . . . . . . . . . . . . . . . Disable Machine 1290 | . . . 15 . 105 135 . . . . . . . 15 . . . . 45 15 15 30 . . 105 30 90 690 Destroy Structure 1016 | . . . 29 . 94 39 1 . 11 . . . . 6 . . . . 94 78 26 10 40 22 26 223 60 257 Lose Combat Pursuer 510 | . 45 . 15 . 30 105 . . . . . . . . . . . . . 75 . . 15 . . 45 . 180 Influence Decreases 11675 | 10 368 259 744 399 1089 1209 576 . 243 60 82 8 40 72 2 . 15 216 340 678 768 416 346 599 524 531 934 1147 Entered New Map 2087 | . . 37 . 209 66 269 208 . . . . 8 . . 2 . . . 2 . 376 256 156 203 38 . 222 35 Time Decay 7420 | 10 328 222 574 180 693 620 368 . 187 60 72 . 40 72 . . 15 196 308 478 302 160 110 356 334 481 502 752 Lost Part 740 | . 40 . 20 10 30 20 . . . . 10 . . . . . . 20 30 20 30 . . 20 20 50 60 360 Lost Ally 396 | . . . . . . . . . 56 . . . . . . . . . . 180 60 . 80 20 . . . . Purge Threat 1032 | . . . 150 . 300 300 . . . . . . . . . . . . . . . . . . 132 . 150 . Squads Dispatched 90 | . 3 . 5 . 6 3 . . 2 . . . . 1 . . . . 3 3 . . 3 4 3 9 6 39 Investigation 9 | . 1 . 2 . . 2 . . . . . . . 1 . . . . . 1 . . 1 . . 1 . . Extermination 28 | . . . . . . . . . 1 . . . . . . . . . 3 . . . . . 3 8 3 10 Reinforcement 26 | . 2 . 3 . 5 . . . 1 . . . . . . . . . . 2 . . 2 4 . . 3 4 Assault 26 | . . . . . 1 . . . . . . . . . . . . . . . . . . . . . . 25 Garrison 1 | . . . . . . 1 . . . . . . . . . . . . . . . . . . . . . . Intercept . | . . . . . . . . . . . . . . . . . . . . . . . . . . . . . Searches Triggered . | . . . . . . . . . . . . . . . . . . . . . . . . . . . . . Data Miner Redirects 6 | . . . . . . . . . . . . . . . . . . . . . . . . . . . . 6 Construction Impeded 1 | . . . . . . . . . . . . . . . . . . . . 1 . . . . . . . . Haulers Reinforced 3 | . . . . . . . . . 1 . . . . . . . . . . . . . . 2 . . . . Active Scanning Responses . | . . . . . . . . . . . . . . . . . . . . . . . . . . . . . Cargo Convoy Interrupts . | . . . . . . . . . . . . . . . . . . . . . . . . . . . . . Stealth | -11 -10 -10 -9 -9 -8 -8 -8 -8 -6 -6 -6 -6 -5 -5 -5 -5 -5 -4 -4 -4 -4 -4 -4 -3 -3 -2 -2 -2 --------- Run | Yrd Mat Min Mat Min Mat Sto Rec Scr Fac Low Low Dat Pro Fac Upp Upp Zhi Pro Fac Ext Cet Arc Hub Res Tes Res Qua Frg Distress Signals 33 | . 2 . 4 . 5 3 . . 1 . . . . . . . . . . 1 2 . 5 6 2 2 . . Communications Jammed 35 | . . . . . . . . . . . . . . . . . . . . . . . . 20 2 5 7 1 Distress Signals 32 | . . . . . . . . . . . . . . . . . . . . . . . . 20 1 3 7 1 Times Spotted 618 | . 23 8 50 7 65 39 7 . 12 3 4 . 1 1 . . . 10 9 34 10 14 15 27 17 39 23 200 Peak Tracking Total 25 | . 4 3 7 7 5 5 5 . 2 3 4 . 1 1 . . . 4 2 6 5 2 6 6 5 5 4 25 Tactical Retreats 24 | . 2 . 1 . 2 5 . . . . . . . . . . . . . 4 . . 1 . . 2 . 7 Traps | -11 -10 -10 -9 -9 -8 -8 -8 -8 -6 -6 -6 -6 -5 -5 -5 -5 -5 -4 -4 -4 -4 -4 -4 -3 -3 -2 -2 -2 ------- Run | Yrd Mat Min Mat Min Mat Sto Rec Scr Fac Low Low Dat Pro Fac Upp Upp Zhi Pro Fac Ext Cet Arc Hub Res Tes Res Qua Frg Traps Triggered 23 | . 1 . 2 . . 2 . . 2 . . . . 1 . . . . 2 1 . . . 3 . . . 9 Indirectly . | . . . . . . . . . . . . . . . . . . . . . . . . . . . . . Trap Hack Attempts . | . . . . . . . . . . . . . . . . . . . . . . . . . . . . . Triggered . | . . . . . . . . . . . . . . . . . . . . . . . . . . . . . Disarmed . | . . . . . . . . . . . . . . . . . . . . . . . . . . . . . Reprogrammed . | . . . . . . . . . . . . . . . . . . . . . . . . . . . . . Reused . | . . . . . . . . . . . . . . . . . . . . . . . . . . . . . Traps Extracted . | . . . . . . . . . . . . . . . . . . . . . . . . . . . . . Installed . | . . . . . . . . . . . . . . . . . . . . . . . . . . . . . Triggered . | . . . . . . . . . . . . . . . . . . . . . . . . . . . . . Machines | -11 -10 -10 -9 -9 -8 -8 -8 -8 -6 -6 -6 -6 -5 -5 -5 -5 -5 -4 -4 -4 -4 -4 -4 -3 -3 -2 -2 -2 ---------- Run | Yrd Mat Min Mat Min Mat Sto Rec Scr Fac Low Low Dat Pro Fac Upp Upp Zhi Pro Fac Ext Cet Arc Hub Res Tes Res Qua Frg Machines Disabled 97 | . . . 1 . 7 9 . . . . . . . 1 . . . . 3 4 1 2 . . 8 3 6 52 Max in Single Turn 8 | . . . 1 . 1 1 . . . . . . . 1 . . . . 1 1 1 . . . 1 1 1 8 Garrison Access 4 | . . . . . 1 . . . 1 . . . . . . . . . . . . . . . . . 1 1 Machines Repaired . | . . . . . . . . . . . . . . . . . . . . . . . . . . . . . Machines Dismantled 3 | . . . . . . 1 . . . . . . . . . . . . . . 1 . . . 1 . . . Machines Sabotaged . | . . . . . . . . . . . . . . . . . . . . . . . . . . . . . Overloaded Fab Kills . | . . . . . . . . . . . . . . . . . . . . . . . . . . . . . Hacking | -11 -10 -10 -9 -9 -8 -8 -8 -8 -6 -6 -6 -6 -5 -5 -5 -5 -5 -4 -4 -4 -4 -4 -4 -3 -3 -2 -2 -2 --------- Run | Yrd Mat Min Mat Min Mat Sto Rec Scr Fac Low Low Dat Pro Fac Upp Upp Zhi Pro Fac Ext Cet Arc Hub Res Tes Res Qua Frg Machines Accessed 111 | . 9 2 12 . 11 10 10 5 6 . 1 4 . 3 . . 4 . 5 3 1 . 2 1 6 6 5 5 Terminals 64 | . 7 1 9 . 6 7 6 . 3 . . . . 1 . . . . 1 3 1 . 2 1 6 2 4 4 Fabricators 3 | . . . . . . . . . 2 . . . . . . . . . 1 . . . . . . . . . Repair Stations 9 | . 1 . 2 . 1 2 . . . . . . . 1 . . . . 1 . . . . . . 1 . . Recycling Units 12 | . 1 . 1 . 2 1 4 . . . . . . . . . . . 2 . . . . . . 1 . . Scanalyzers 1 | . . . . . 1 . . . . . . . . . . . . . . . . . . . . . . . Garrison Access 7 | . . . . . 1 . . . 1 . . . . 1 . . . . . . . . . . . 2 1 1 Total Hacks 337 | . 20 3 43 . 31 33 25 37 12 . 1 33 . 9 . . 17 . 10 7 1 . 3 2 18 11 10 11 Successful 227 | . 9 1 25 . 20 21 16 37 9 . 1 33 . 5 . . 17 . 3 5 . . 2 1 6 4 5 7 Failed 110 | . 11 2 18 . 11 12 9 . 3 . . . . 4 . . . . 7 2 1 . 1 1 12 7 5 4 Catastrophic 15 | . . 1 2 . 1 . 1 . . . . . . 1 . . . . 2 . 1 . . . 2 2 1 1 Database Lockouts . | . . . . . . . . . . . . . . . . . . . . . . . . . . . . . Manual 121 | . 15 . 24 . 13 11 20 . 6 . . . . 1 . . . . . 2 1 . 3 . 15 2 1 7 Terminals 161 | . 17 2 29 . 12 21 16 . 6 . . . . 2 . . . . 3 7 1 . 3 2 18 3 9 10 Fabricators 7 | . . . . . . . . . 5 . . . . . . . . . 2 . . . . . . . . . Repair Stations 43 | . 1 . 12 . 8 11 . . . . . . . 5 . . . . 3 . . . . . . 3 . . Recycling Units 24 | . 2 . 2 . 7 1 9 . . . . . . . . . . . 2 . . . . . . 1 . . Scanalyzers 3 | . . . . . 3 . . . . . . . . . . . . . . . . . . . . . . . Garrison Access 10 | . . . . . 1 . . . 1 . . . . 2 . . . . . . . . . . . 4 1 1 Terminal Hacks 129 | . 1 1 8 . 3 9 . 37 2 . 1 33 . . . . 17 . 1 3 . . . 1 4 . 4 4 Record 46 | . . . . . . 1 . 29 . . . 11 . . . . 5 . . . . . . . . . . . Part Schematic 19 | . . . 2 . . . . . . . . 12 . . . . 4 . . 1 . . . . . . . . Robot Schematic 7 | . . . . . . . . . . . . 7 . . . . . . . . . . . . . . . . Robot Analysis 15 | . . . 2 . . 1 . 8 . . . . . . . . 4 . . . . . . . . . . . Prototype ID Bank 9 | . . . . . . 1 . . . . . 3 . . . . 4 . . 1 . . . . . . . . Open Door 3 | . . 1 . . . 1 . . . . 1 . . . . . . . . . . . . . . . . . Level Access Points 1 | . . . . . . . . . . . . . . . . . . . . . . . . . 1 . . . Branch Access Points 5 | . . . 1 . 1 . . . 1 . . . . . . . . . 1 . . . . 1 . . . . Alert Level 1 | . . . . . . 1 . . . . . . . . . . . . . . . . . . . . . . Unreport Threat 7 | . . . 1 . 2 2 . . . . . . . . . . . . . . . . . . 1 . 1 . Locate Traps 6 | . 1 . 1 . . . . . . . . . . . . . . . . 1 . . . . 1 . 1 1 Maintenance Status 1 | . . . . . . . . . . . . . . . . . . . . . . . . . . . 1 . Recall Extermination 1 | . . . . . . . . . . . . . . . . . . . . . . . . . 1 . . . Hauler Manifests 2 | . . . 1 . . 1 . . . . . . . . . . . . . . . . . . . . . . Registered Components 1 | . . . . . . 1 . . . . . . . . . . . . . . . . . . . . . . Zone Layout 4 | . . . . . . . . . 1 . . . . . . . . . . . . . . . . . 1 2 Proto ID Catalog 1 | . . . . . . . . . . . . . . . . . . . . . . . . . . . . 1 Fabricator Hacks 2 | . . . . . . . . . 1 . . . . . . . . . 1 . . . . . . . . . Network Status 1 | . . . . . . . . . 1 . . . . . . . . . . . . . . . . . . . Load Schematic 1 | . . . . . . . . . . . . . . . . . . . 1 . . . . . . . . . Repair Station Hacks 33 | . . . 12 . 7 8 . . . . . . . 4 . . . . . . . . . . . 2 . . Scan Component 17 | . . . 6 . 4 4 . . . . . . . 2 . . . . . . . . . . . 1 . . Repair 16 | . . . 6 . 3 4 . . . . . . . 2 . . . . . . . . . . . 1 . . Recycling Unit Hacks 11 | . 1 . 1 . 2 1 4 . . . . . . . . . . . 1 . . . . . . 1 . . Retrieve Matter 1 | . . . . . . . . . . . . . . . . . . . 1 . . . . . . . . . Retrieve Components 10 | . 1 . 1 . 2 1 4 . . . . . . . . . . . . . . . . . . 1 . . Scanalyzer 3 | . . . . . 3 . . . . . . . . . . . . . . . . . . . . . . . Insert Component 1 | . . . . . 1 . . . . . . . . . . . . . . . . . . . . . . . Analyze 2 | . . . . . 2 . . . . . . . . . . . . . . . . . . . . . . . Garrison Access Hacks 4 | . . . . . 1 . . . 1 . . . . . . . . . . . . . . . . . 1 1 Seal Access 4 | . . . . . 1 . . . 1 . . . . . . . . . . . . . . . . . 1 1 Unauthorized Hacks 44 | . 7 . 4 . 4 3 11 . 5 . . . . 1 . . . . . 2 . . 2 . 2 1 . 2 Terminals 37 | . 7 . 4 . 2 3 8 . 3 . . . . 1 . . . . . 2 . . 2 . 2 1 . 2 Track 2 | . . . . . . . . . 1 . . . . . . . . . . . . . . . . . . 1 Botnet 24 | . 3 . 3 . 2 3 3 . 2 . . . . 1 . . . . . 2 . . 1 . 2 1 . 1 Skim 10 | . 4 . 1 . . . 5 . . . . . . . . . . . . . . . . . . . . . Sabotage 1 | . . . . . . . . . . . . . . . . . . . . . . . 1 . . . . . Fabricators 2 | . . . . . . . . . 2 . . . . . . . . . . . . . . . . . . . Fabnet 2 | . . . . . . . . . 2 . . . . . . . . . . . . . . . . . . . Repair Stations . | . . . . . . . . . . . . . . . . . . . . . . . . . . . . . Recycling Units 5 | . . . . . 2 . 3 . . . . . . . . . . . . . . . . . . . . . Reject 1 | . . . . . 1 . . . . . . . . . . . . . . . . . . . . . . . Mask 1 | . . . . . 1 . . . . . . . . . . . . . . . . . . . . . . . Tunnel 3 | . . . . . . . 3 . . . . . . . . . . . . . . . . . . . . . Scanalyzers . | . . . . . . . . . . . . . . . . . . . . . . . . . . . . . Garrison Access . | . . . . . . . . . . . . . . . . . . . . . . . . . . . . . Data Cores Recovered 3 | . . . . . . 1 . . . . . . . . . . . . . . . . . . . 1 1 . Used . | . . . . . . . . . . . . . . . . . . . . . . . . . . . . . Hacking Detections 79 | . 9 1 11 . 9 9 7 . 3 . . . . 3 . . . . 4 2 . . 1 1 6 6 4 3 Full Trace Events 8 | . 1 1 1 . . . 3 . . . . . . 1 . . . . . . . . . . . 1 . . Feedback Events . | . . . . . . . . . . . . . . . . . . . . . . . . . . . . . Feedback Blocked . | . . . . . . . . . . . . . . . . . . . . . . . . . . . . . Robot Schematics Acquired 11 | . . . . . . . . . . . . 7 . . . . . . . . . . . . . . 2 2 Robots Built . | . . . . . . . . . . . . . . . . . . . . . . . . . . . . . Authchips . | . . . . . . . . . . . . . . . . . . . . . . . . . . . . . Time . | . . . . . . . . . . . . . . . . . . . . . . . . . . . . . Total Robot Build Rating . | . . . . . . . . . . . . . . . . . . . . . . . . . . . . . Part Schematics Acquired 43 | . . . 2 . 1 . . . . . . 12 . . . . 4 . . 1 . . . . . . 7 16 Parts Built . | . . . . . . . . . . . . . . . . . . . . . . . . . . . . . Authchips . | . . . . . . . . . . . . . . . . . . . . . . . . . . . . . Time . | . . . . . . . . . . . . . . . . . . . . . . . . . . . . . Total Part Build Rating . | . . . . . . . . . . . . . . . . . . . . . . . . . . . . . Parts Repaired 16 | . . . 6 . 3 4 . . . . . . . 2 . . . . . . . . . . . 1 . . Time 661 | . . . 243 . 114 174 . . . . . . . 94 . . . . . . . . . . . 36 . . Parts Recycled . | . . . . . . . . . . . . . . . . . . . . . . . . . . . . . Recycled Matter . | . . . . . . . . . . . . . . . . . . . . . . . . . . . . . Retrieved Matter . | . . . . . . . . . . . . . . . . . . . . . . . . . . . . . Retrieved Components 28 | . 4 . 3 . 11 4 4 . . . . . . . . . . . . . . . . . . 2 . . Parts Scanalyzed 1 | . . . . . 1 . . . . . . . . . . . . . . . . . . . . . . . Part Schematics Acquired 1 | . . . . . 1 . . . . . . . . . . . . . . . . . . . . . . . Parts Damaged . | . . . . . . . . . . . . . . . . . . . . . . . . . . . . . Bothacking | -11 -10 -10 -9 -9 -8 -8 -8 -8 -6 -6 -6 -6 -5 -5 -5 -5 -5 -4 -4 -4 -4 -4 -4 -3 -3 -2 -2 -2 ------------ Run | Yrd Mat Min Mat Min Mat Sto Rec Scr Fac Low Low Dat Pro Fac Upp Upp Zhi Pro Fac Ext Cet Arc Hub Res Tes Res Qua Frg Used RIF Installer . | . . . . . . . . . . . . . . . . . . . . . . . . . . . . . Robots Hacked . | . . . . . . . . . . . . . . . . . . . . . . . . . . . . . Non-combat . | . . . . . . . . . . . . . . . . . . . . . . . . . . . . . Combat . | . . . . . . . . . . . . . . . . . . . . . . . . . . . . . Robot Hacks Applied . | . . . . . . . . . . . . . . . . . . . . . . . . . . . . . Relay Couplers Released . | . . . . . . . . . . . . . . . . . . . . . . . . . . . . . Fabnet Peak Effective % 6 | . . . . . . . . . . . . . 6 6 6 6 6 2 2 2 2 2 2 . . . . . Robots Rewired 19 | . . . . . . . 8 . . . . . . . . . . . . 11 . . . . . . . . Allies Hacked . | . . . . . . . . . . . . . . . . . . . . . . . . . . . . . Hacks Repelled . | . . . . . . . . . . . . . . . . . . . . . . . . . . . . . Allies | -11 -10 -10 -9 -9 -8 -8 -8 -8 -6 -6 -6 -6 -5 -5 -5 -5 -5 -4 -4 -4 -4 -4 -4 -3 -3 -2 -2 -2 -------- Run | Yrd Mat Min Mat Min Mat Sto Rec Scr Fac Low Low Dat Pro Fac Upp Upp Zhi Pro Fac Ext Cet Arc Hub Res Tes Res Qua Frg Total Allies 29 | . . . . . . . 8 . . . . . . . . . . . . 16 5 . . . . . . . Largest Group 11 | . . . . . . . 8 8 8 . . . . . . . . . . 11 9 8 7 1 . . . . Highest-Rated Group 756 | . . . . . . . 80 80 80 . . . . . . . . . . 479 756 604 508 51 . . . . Highest-Rated Ally 159 | . . . . . . . 15 15 15 . . . . . . . . . . 159 159 96 96 51 . . . . Total Orders 2 | . . . . . . . . 2 . . . . . . . . . . . . . . . . . . . . STAY 1 | . . . . . . . . 1 . . . . . . . . . . . . . . . . . . . . FOLLOW 1 | . . . . . . . . 1 . . . . . . . . . . . . . . . . . . . . Ally Attacks 262 | . . . . . . . . . 5 . . . . . . . . . . 107 65 28 55 2 . . . . Total Damage 7316 | . . . . . . . . . 30 . . . . . . . . . . 2778 1826 943 1696 43 . . . . Kills 36 | . . . . . . . . . . . . . . . . . . . . 15 6 4 11 . . . . . Allies Corrupted . | . . . . . . . . . . . . . . . . . . . . . . . . . . . . . Allies Melted 1 | . . . . . . . . . . . . . . . . . . . . . . . 1 . . . . . Intel | -11 -10 -10 -9 -9 -8 -8 -8 -8 -6 -6 -6 -6 -5 -5 -5 -5 -5 -4 -4 -4 -4 -4 -4 -3 -3 -2 -2 -2 ------- Run | Yrd Mat Min Mat Min Mat Sto Rec Scr Fac Low Low Dat Pro Fac Upp Upp Zhi Pro Fac Ext Cet Arc Hub Res Tes Res Qua Frg Active Infowar (turns) 17945 | 31 849 2 . . . . . . 684 387 584 168 523 567 248 403 389 788 1222 128 . 1 54 919 1247 2582 1341 4828 Optics 8920 | . . . . . . . . . 139 . . . . . . . . . . . . . . . 40 2582 1341 4818 Sensors 12092 | . . 2 . . . . . . 539 385 584 168 518 422 248 403 387 681 1136 128 . 1 54 599 1142 2109 1169 1417 Structural 10869 | . . . . . . . . . 621 385 580 168 521 423 246 403 389 680 1131 . . . . 598 1208 2582 934 . Seismic 880 | 31 849 . . . . . . . . . . . . . . . . . . . . . . . . . . . Jamming 9440 | . . . . . . . . . . . . . . 418 248 222 . 335 602 . . . . 421 1207 1923 1340 2724 Robot Analysis Total 15 | . . . 2 . . 1 . 8 . . . . . . . . 4 . . . . . . . . . . . Derelict Logs Recovered 10 | . . 2 . 2 . . . . . 2 1 . 2 . . . . 1 . . . . . . . . . . Drone Launches . | . . . . . . . . . . . . . . . . . . . . . . . . . . . . . Drone Recoveries . | . . . . . . . . . . . . . . . . . . . . . . . . . . . . . Exploration | -11 -10 -10 -9 -9 -8 -8 -8 -8 -6 -6 -6 -6 -5 -5 -5 -5 -5 -4 -4 -4 -4 -4 -4 -3 -3 -2 -2 -2 ------------- Run | Yrd Mat Min Mat Min Mat Sto Rec Scr Fac Low Low Dat Pro Fac Upp Upp Zhi Pro Fac Ext Cet Arc Hub Res Tes Res Qua Frg Turns Passed 34206 | 120 1293 917 2446 372 2859 2099 1818 2349 812 418 604 168 554 567 248 403 433 799 1255 1527 660 326 233 928 1247 2582 1341 4828 Spaces Moved 17179 | 69 672 541 1112 211 1125 945 1056 1502 408 240 358 103 258 283 157 252 204 327 653 725 217 69 135 490 689 1153 700 2525 Core 10 | 10 . . . . . . . . . . . . . . . . . . . . . . . . . . . . Treads 15204 | . 461 541 1112 211 1125 945 1056 1502 408 240 358 103 258 283 157 252 204 327 653 725 217 69 135 490 689 1153 700 830 Legs 1965 | 59 211 . . . . . . . . . . . . . . . . . . . . . . . . . . 1695 Wheels . | . . . . . . . . . . . . . . . . . . . . . . . . . . . . . Hover . | . . . . . . . . . . . . . . . . . . . . . . . . . . . . . Flight . | . . . . . . . . . . . . . . . . . . . . . . . . . . . . . Fastest Speed 50 | 50 120 160 160 160 160 158 158 153 155 158 158 158 156 156 156 156 156 156 157 158 155 155 155 155 150 158 155 100 Average Speed 156 | 115 147 160 160 160 192 158 158 154 156 158 158 158 156 157 156 156 196 212 159 161 155 155 155 155 151 160 157 126 Slowest Speed 250 | 190 160 160 160 160 250 237 158 158 238 158 158 158 158 235 156 156 236 236 162 162 158 155 155 160 158 163 232 250 Overloaded Moves . | . . . . . . . . . . . . . . . . . . . . . . . . . . . . . Propulsion Burnouts . | . . . . . . . . . . . . . . . . . . . . . . . . . . . . . Robots Hopped . | . . . . . . . . . . . . . . . . . . . . . . . . . . . . . Potential Cave-ins 17 | . . . . . . . . . . . . . . . . . . . . . . . . . . . . 17 Cave-ins Triggered . | . . . . . . . . . . . . . . . . . . . . . . . . . . . . . Teleports 2 | . . . . . . . . . . . . . . . . . . . . . . . . . . . . 2 Exploration Rate (%) 59 | 5 92 99 92 35 86 97 99 92 19 41 65 71 72 8 38 58 61 60 19 87 68 73 25 20 64 43 69 60 Regions Visited 28 Branch Regions 20 Pre-discovered Areas 9 | . . 1 . 1 . . 3 . . . . 1 . . . . 3 . . . . . . . . . . . Known Exits Taken 21 | . . . 1 . 1 . . . 1 1 1 1 1 1 1 1 1 1 1 1 1 1 1 1 1 1 1 . Unknown Exits Taken 7 | 1 1 1 . 1 . 1 1 1 . . . . . . . . . . . . . . . . . . . . Scrap Searched 19 | . . 3 . . . . . 5 . 4 2 . 2 . . 1 . 2 . . . . . . . . . . Spaces Dug 253 | . . . . . 26 22 . . 7 2 9 . 7 3 . 2 . 8 11 . . . 3 5 10 51 10 77 Terrain Destroyed 616 | . . . 20 . 110 31 . . 10 7 11 . 11 3 . 2 . 115 45 35 10 2 9 10 13 67 18 87 Melee 3 | . . . . . 3 . . . . . . . . . . . . . . . . . . . . . . . Projectile 329 | . . . . . . 1 . . 10 7 11 . 11 3 . 2 . 12 25 35 10 2 9 10 13 67 14 87 AOE 284 | . . . 20 . 107 30 . . . . . . . . . . . 103 20 . . . . . . . 4 . Terrain Rammed . | . . . . . . . . . . . . . . . . . . . . . . . . . . . . . Walls Destroyed . | . . . . . . . . . . . . . . . . . . . . . . . . . . . . . Machines Disabled . | . . . . . . . . . . . . . . . . . . . . . . . . . . . . . Actions | -11 -10 -10 -9 -9 -8 -8 -8 -8 -6 -6 -6 -6 -5 -5 -5 -5 -5 -4 -4 -4 -4 -4 -4 -3 -3 -2 -2 -2 --------- Run | Yrd Mat Min Mat Min Mat Sto Rec Scr Fac Low Low Dat Pro Fac Upp Upp Zhi Pro Fac Ext Cet Arc Hub Res Tes Res Qua Frg Total 23027 | 96 839 567 1622 228 1569 1338 1168 1535 514 255 377 108 387 391 159 259 229 400 797 961 503 288 159 648 875 1863 932 3960 Wait 2837 | 10 65 4 352 . 241 230 22 24 8 . 1 . 107 88 . . . 15 70 95 200 185 1 28 32 473 69 517 Move 17151 | 68 671 540 1111 210 1124 944 1055 1501 407 239 357 102 257 282 156 251 203 326 652 724 216 68 134 489 688 1152 699 2525 Hop . | . . . . . . . . . . . . . . . . . . . . . . . . . . . . . Pick Up 196 | 4 9 3 19 1 16 5 . 3 10 . 1 . . 2 1 1 3 1 7 6 11 1 . 4 10 7 17 54 Fast Attach 205 | 7 5 1 27 2 20 17 2 2 7 . . 3 . 1 . 3 7 1 7 9 13 3 1 9 11 8 15 24 Attach 139 | . 4 1 2 1 5 2 . . 9 . 1 . 2 4 . . 1 8 7 2 7 . . 2 11 6 11 53 Detach 58 | . . 1 . 1 . 1 . . 5 . . . . . . 1 . 7 4 . 6 . . 1 8 1 4 18 Swap 301 | 1 3 1 3 . 14 8 . . 14 4 3 . 8 7 2 . 5 16 8 2 3 1 1 17 21 37 20 102 Drop 247 | 1 4 1 25 2 26 16 2 5 13 . . 3 . . . 1 7 3 7 13 17 3 2 10 14 5 25 42 Fire 1464 | 5 74 12 80 9 119 99 18 . 41 12 14 . 13 7 . 2 3 23 35 51 21 27 20 82 75 171 70 381 Melee 237 | . . . . . 3 . . . . . . . . . . . . . . . 1 . . . . . 1 232 Ram . | . . . . . . . . . . . . . . . . . . . . . . . . . . . . . Kick . | . . . . . . . . . . . . . . . . . . . . . . . . . . . . . Crush 38 | . 4 3 3 2 1 8 7 . . . . . . . . . . . . 1 . . . 6 . 3 . . Escape Stasis 13 | . . . . . . . . . . . . . . . . . . . . . . . . . . . 1 12 Rewire 120 | . . . . . . . 62 . . . . . . . . . . . . 58 . . . . . . . . Trap . | . . . . . . . . . . . . . . . . . . . . . . . . . . . . . Miscellaneous 21 | . . . . . . 8 . . . . . . . . . . . . . . 8 . . . 5 . . . Route ------- -11/Scrapyard -10/Materials (discovered 3 exits: *Mat x2 / *Min) -10/Mines (discovered 4 exits: *Mat x2 / [*Exi] / [*Sub]) -9/Materials (discovered 4 exits: *Mat x3 / *Min) -9/Mines -8/Materials (discovered 3 exits: [*Fac] / *Sto x2) -8/Storage (discovered 2 exits: [*Fac] / *Rec) -8/Recycling (discovered 2 exits: *Fac / *Scr) -8/Scraptown (discovered 2 exits: *Fac x2) -6/Factory (discovered 2 exits: *Low x2) -6/Lower Caves -6/Lower Caves (discovered 2 exits: *Fac / *Dat) -6/Data Miner -5/Proximity Caves -5/Factory (discovered 2 exits: Fac / *Upp) -5/Upper Caves -5/Upper Caves (discovered 2 exits: *Fac / *Zhi) -5/Zhirov -4/Proximity Caves -4/Factory (discovered 5 exits: Upp x2 / *Ext x2 / Arm) -4/Extension (discovered 2 exits: *Res / *Cet) -4/Cetus (discovered 2 exits: *Res / *Arc) -4/Archives (discovered 2 exits: *Hub x2) -4/Hub_04(d) -3/Research (discovered 3 exits: Res / *Tes x2) -3/Testing -2/Research (discovered 2 exits: *Acc / *Qua) -2/Quarantine (discovered 2 exits: *Sec / *Frg) -2/Protoforge History --------- Turn | Location | Event 17 | -11/Scrapyard | Discovered new exit (range 16) 121 | -11/Scrapyard | Entered Materials 274 | -10/Materials | Discovered new exit (range 16) 312 | -10/Materials | Build established: Mutant 709 | -10/Materials | Discovered new exit (range 16) 797 | -10/Materials | Discovered new exit (range 16) 1414 | -10/Materials | Entered Mines 1417 | -10/Mines | Core integrity fell below 50% 1527 | -10/Mines | Met a Derelict bent on vengeance 1532 | -10/Mines | Discovered new exit (range 9) 1616 | -10/Mines | Deemed a non-threat by the Exiles lab entrance 1616 | -10/Mines | Discovered new exit (range 5) 1678 | -10/Mines | Found a damaged Exp. Sensor Array with a note attached 1681 | -10/Mines | Found Prototype Device 1682 | -10/Mines | Identified Exp. Sensor Array 1719 | -10/Mines | Learned Materials security intel 1768 | -10/Mines | Discovered new exit (range 6) 2036 | -10/Mines | Met a Derelict who couldn't figure out how to use a Trap Extractor 2264 | -10/Mines | Discovered new exit (range 10) 2331 | -10/Mines | Entered Materials 2331 | -9/Materials | Evolved 2 slots: Propulsion x1, Weapon x1 2742 | -9/Materials | Repaired Heat Sink 3010 | -9/Materials | Discovered new exit (range 16) 3086 | -9/Materials | Build established: Scavenger-Gunner 3225 | -9/Materials | Identified exit to Mines 3426 | -9/Materials | Destroyed 7 combat bots 3456 | -9/Materials | Repaired Lgt. Treads 3490 | -9/Materials | Repaired Spread Laser 3599 | -9/Materials | Repaired Exp. Sensor Array 3632 | -9/Materials | Repaired Spread Laser 3666 | -9/Materials | Repaired Autogun 3752 | -9/Materials | Discovered new exit (range 16) 4338 | -9/Materials | Discovered new exit (range 16) 4777 | -9/Materials | Entered Mines 4790 | -9/Mines | Discovered new exit (range 10) 4842 | -9/Mines | Destroyed 7 combat bots 4851 | -9/Mines | Learned location of Zion (-7) 4904 | -9/Mines | Found a hidden stash of uninstalled traps 5027 | -9/Mines | Learned Materials trap positions 5149 | -9/Mines | Entered Materials 5149 | -8/Materials | Evolved 2 slots: Utility x2 5150 | -8/Materials | Loaded intel: 22 trap records 5658 | -8/Materials | Discovered new exit (range 4) 5801 | -8/Materials | Discovered new exit (range 12) 5950 | -8/Materials | Identified exit to Storage 7409 | -8/Materials | Repaired Arm. Treads 7448 | -8/Materials | Repaired Arm. Treads 7488 | -8/Materials | Repaired Arm. Treads 7949 | -8/Materials | First assault squad dispatched 8008 | -8/Materials | Entered Storage 8074 | -8/Storage | Repaired Adv. Treads 8301 | -8/Storage | Build established: Gunner 8562 | -8/Storage | Core integrity fell below 50% 8584 | -8/Storage | Destroyed 7 combat bots 9289 | -8/Storage | Repaired Adv. Treads 9329 | -8/Storage | Repaired Imp. Heat Sink 9390 | -8/Storage | Repaired Adv. Beam Rifle 9712 | -8/Storage | Build established: Scavenger-Gunner 9934 | -8/Storage | Discovered new exit (range 5) 10082 | -8/Storage | Garrison activated, responded to threat 10101 | -8/Storage | Used back door to open Recycling access 10101 | -8/Storage | Discovered new exit (range 5) 10107 | -8/Storage | Entered Recycling 10346 | -8/Recycling | Discovered new exit (range 16) 10694 | -8/Recycling | Scanned before Scraplab entrance 11074 | -8/Recycling | Build established: Gunner 11587 | -8/Recycling | Build established: Commander-Gunner 11879 | -8/Recycling | Entered Scraplab 11907 | -8/Recycling | Discovered new exit (range 3) 11925 | -8/Recycling | Entered Scraptown 11925 | -8/Scraptown | Accompanied by 8 allies 12230 | -8/Scraptown | Discovered new exit (range 5) 12335 | -8/Scraptown | Visited Symbiants 12360 | -8/Scraptown | Visited The Evicted 12630 | -8/Scraptown | Visited Fellowship of the Rings 12674 | -8/Scraptown | Visited Spacefarers 12750 | -8/Scraptown | Visited Assassins FH 12784 | -8/Scraptown | Visited IN-MT5's Study 12819 | -8/Scraptown | Visited Cyclists 13132 | -8/Scraptown | Visited UFD Registry 13132 | -8/Scraptown | Registered with UFD as "Scrapblaster" 13187 | -8/Scraptown | Visited Curators Association 13260 | -8/Scraptown | Visited LU-1G1's Boring Crew 13286 | -8/Scraptown | Visited Abandonware Association 13305 | -8/Scraptown | Learned abandonware demo "MELTYB.EXE" 13364 | -8/Scraptown | Discovered new exit (range 5) 13470 | -8/Scraptown | Visited Science Testing Area 13493 | -8/Scraptown | Visited Junk Repository 13531 | -8/Scraptown | Visited Supply Room 13556 | -8/Scraptown | Visited Analyses Database 13586 | -8/Scraptown | Visited Scrap Suit Storage 13625 | -8/Scraptown | Visited Junk Repository 13664 | -8/Scraptown | Visited A0-MCA Data Center 13674 | -8/Scraptown | Given an A rating by A0-MCA 13679 | -8/Scraptown | Found A0-MCA's Component Scanner 14172 | -8/Scraptown | Met Optimus 14172 | -8/Scraptown | Accepted into 0bPrime 14274 | -8/Scraptown | Entered Factory 14274 | -6/Factory | Accompanied by 8 allies 14274 | -6/Factory | Evolved 4 slots: Propulsion x1, Utility x3 14323 | -6/Factory | Identified exit to Lower Caves 14662 | -6/Factory | Build established: Commander-Skirmisher 14718 | -6/Factory | Found Prototype Launcher 14719 | -6/Factory | Identified Scatter Rocket Array 14868 | -6/Factory | Lost 3 allies 15086 | -6/Factory | Entered Lower Caves 15088 | -6/Lower Caves | Attracted the attention of an 0b10 checkpoint 15250 | -6/Lower Caves | Encountered a Warlord checkpoint 15274 | -6/Lower Caves | Learned Factory emergency access door positions 15395 | -6/Lower Caves | Learned Factory terminal intel 15427 | -6/Lower Caves | Build established: Scavenger-Skirmisher 15446 | -6/Lower Caves | Discovered new exit (range 14) 15468 | -6/Lower Caves | Identified exit to Lower Caves 15504 | -6/Lower Caves | Entered another Lower Caves area 15644 | -6/Lower Caves | Discovered new exit (range 14) 15732 | -6/Lower Caves | Learned location of 1 exit from Factory 16009 | -6/Lower Caves | Encountered a Warlord checkpoint 16044 | -6/Lower Caves | Discovered new exit (range 16) 16066 | -6/Lower Caves | Identified exit to Data Miner 16108 | -6/Lower Caves | Entered Data Miner 16110 | -6/Data Miner | Discovered new exit (range 6) 16140 | -6/Data Miner | Met Data Miner 16176 | -6/Data Miner | Learned location of Section 7 (-2) 16176 | -6/Data Miner | Acquired the access code to Warlord's prototype stash 16210 | -6/Data Miner | Received God Mode back door access code from Data Miner 16274 | -6/Data Miner | Identified exit to Proximity Caves 16276 | -6/Data Miner | Entered Proximity Caves 16479 | -5/Proximity Caves | Attracted the attention of an 0b10 checkpoint 16766 | -5/Proximity Caves | Build established: Skirmisher 16793 | -5/Proximity Caves | Learned Factory stockpile data 16794 | -5/Proximity Caves | Discovered new exit (range 5) 16829 | -5/Proximity Caves | Identified exit to Factory 16830 | -5/Proximity Caves | Entered Factory 16830 | -5/Factory | Evolved 2 slots: Power x1, Utility x1 16831 | -5/Factory | Identified exit to Factory 16834 | -5/Factory | Loaded intel: 26 terminal locations 17133 | -5/Factory | Build established: Scavenger-Skirmisher 17134 | -5/Factory | Discovered new exit (range 8) 17143 | -5/Factory | Identified exit to Upper Caves 17329 | -5/Factory | Repaired Imp. Medium Treads 17379 | -5/Factory | Repaired Imp. Cooling System 17397 | -5/Factory | Entered Upper Caves 17623 | -5/Upper Caves | Discovered new exit (range 12) 17637 | -5/Upper Caves | Identified exit to Upper Caves 17645 | -5/Upper Caves | Entered another Upper Caves area 17663 | -5/Upper Caves | Discovered exit to Factory (range 15) 17686 | -5/Upper Caves | Build established: Infiltrator-Skirmisher 17914 | -5/Upper Caves | Found Alien Artifact 17914 | -5/Upper Caves | Identified Core Expander 17914 | -5/Upper Caves | Installed Core Expander, added new Weapon slot 18032 | -5/Upper Caves | Discovered new exit (range 7) 18044 | -5/Upper Caves | Identified exit to Zhirov 18048 | -5/Upper Caves | Entered Zhirov 18048 | -5/Zhirov | Discovered new exit (range 3) 18077 | -5/Zhirov | Met Zhirov 18106 | -5/Zhirov | Learned location of Quarantine (-2) 18106 | -5/Zhirov | Learned location of Testing (-3) 18133 | -5/Zhirov | Zhirov requested help retrieving the SGEMP Prototype 18158 | -5/Zhirov | Found Alien Artifact 18158 | -5/Zhirov | Identified Integrated Dissipator 18158 | -5/Zhirov | Installed Integrated Dissipator, increased core heat dissipation (+20) 18182 | -5/Zhirov | Build established: Skirmisher 18478 | -5/Zhirov | Identified exit to Proximity Caves 18481 | -5/Zhirov | Entered Proximity Caves 18743 | -4/Proximity Caves | Found DCF Scrap (13 items) 18862 | -4/Proximity Caves | Learned location of 1 exit from Research 19023 | -4/Proximity Caves | Attracted the attention of an 0b10 checkpoint 19244 | -4/Proximity Caves | Discovered exit to Factory (range 14) 19280 | -4/Proximity Caves | Entered Factory 19280 | -4/Factory | Evolved 2 slots: Propulsion x1, Utility x1 19341 | -4/Factory | Build established: Infiltrator-Skirmisher 19939 | -4/Factory | Lost 3 parts (1p2u) 20001 | -4/Factory | Found Quantum Capacitor 20229 | -4/Factory | Build established: Skirmisher 20292 | -4/Factory | Identified exit to Upper Caves 20292 | -4/Factory | Identified exit to Extension 20292 | -4/Factory | Identified exit to Armory 20535 | -4/Factory | Entered Extension 21393 | -4/Extension | Build established: Commander-Tank 21501 | -4/Extension | Spotted B-86 Titan 21508 | -4/Extension | Destroyed B-86 Titan 21525 | -4/Extension | Spotted B-86 Titan 21537 | -4/Extension | Allies destroyed B-86 Titan 21560 | -4/Extension | Disrupted transfer network 21566 | -4/Extension | Lost 4 allies 21630 | -4/Extension | Rescued a captive Derelict 21631 | -4/Extension | Rescued a captive Derelict 21710 | -4/Extension | Rescued a captive Derelict 21750 | -4/Extension | Rescued A7 21803 | -4/Extension | Rescued a captive Derelict 21851 | -4/Extension | Build established: Scavenger-Tank 21912 | -4/Extension | Lost 3 allies 21959 | -4/Extension | Rescued a captive Derelict 22003 | -4/Extension | Discovered new exit (range 10) 22005 | -4/Extension | Discovered new exit (range 6) 22026 | -4/Extension | Identified exit to Cetus 22062 | -4/Extension | Entered Cetus 22062 | -4/Cetus | Accompanied by 7 allies (A7) 22067 | -4/Cetus | Acquired a Cetus Manufacturing Module code from A7 22081 | -4/Cetus | Spotted Cetus Guard 22081 | -4/Cetus | Spotted Cetus Guard 22083 | -4/Cetus | Spotted Cetus Guard 22083 | -4/Cetus | Spotted Cetus Guard 22094 | -4/Cetus | Allies destroyed Cetus Guard 22095 | -4/Cetus | Destroyed Cetus Guard 22111 | -4/Cetus | Destroyed Cetus Guard 22118 | -4/Cetus | Allies destroyed Cetus Guard 22137 | -4/Cetus | Lost 3 allies 22217 | -4/Cetus | Started Cetus Manufacturing Module 22242 | -4/Cetus | Manufactured an Enhanced Grunt 22267 | -4/Cetus | Manufactured an Enhanced Grunt 22292 | -4/Cetus | Manufactured an Enhanced Grunt 22317 | -4/Cetus | Manufactured an Enhanced Grunt 22342 | -4/Cetus | Manufactured an Enhanced Grunt 22431 | -4/Cetus | Escorted A7 to Cetus Mainframe 22470 | -4/Cetus | Discovered new exit (range 16) 22505 | -4/Cetus | Spotted Cetus Guard 22505 | -4/Cetus | Spotted Cetus Guard 22507 | -4/Cetus | Spotted Cetus Guard 22513 | -4/Cetus | Spotted Cetus Guard 22515 | -4/Cetus | Allies destroyed Cetus Guard 22529 | -4/Cetus | Allies destroyed Cetus Guard 22531 | -4/Cetus | Destroyed Cetus Guard 22541 | -4/Cetus | Allies destroyed Cetus Guard 22568 | -4/Cetus | Discovered new exit (range 15) 22579 | -4/Cetus | Met Revision 17 22646 | -4/Cetus | Murdered A7 22650 | -4/Cetus | Extracted ID and sensor layout for unrecognized location from A7's data core 22655 | -4/Cetus | Found Prototype Protection 22655 | -4/Cetus | Identified Med. Regenerative Plating 22710 | -4/Cetus | Identified exit to Archives 22722 | -4/Cetus | Entered Archives 22722 | -4/Archives | Accompanied by 8 allies 22958 | -4/Archives | Discovered new exit (range 16) 22983 | -4/Archives | Build established: Scavenger-Gunner 23011 | -4/Archives | Discovered new exit (range 15) 23035 | -4/Archives | Identified exit to Hub_04(d) 23048 | -4/Archives | Entered Hub_04(d) 23048 | -4/Hub_04(d) | Accompanied by 7 allies 23207 | -4/Hub_04(d) | Discovered new exit (range 9) 23229 | -4/Hub_04(d) | Identified exit to Research 23281 | -4/Hub_04(d) | Entered Research 23281 | -3/Research | Accompanied by 1 ally 23281 | -3/Research | Evolved 2 slots: Utility x2 23282 | -3/Research | Identified exit to Research 23284 | -3/Research | Lost 3 allies 23481 | -3/Research | Revision forces began assault on 0b10 23590 | -3/Research | Met up with Revision 17++ 23704 | -3/Research | Lost 5 allies 23737 | -3/Research | Identified exit to Testing 23859 | -3/Research | Spotted B-86 Titan 23899 | -3/Research | Found Quantum Capacitor 23949 | -3/Research | Lost 4 allies 23981 | -3/Research | Research terminal network offline 24073 | -3/Research | Spotted Executioner 24075 | -3/Research | Spotted Striker 24084 | -3/Research | Destroyed Striker 24085 | -3/Research | Destroyed Executioner 24113 | -3/Research | Found Prototype Processor 24113 | -3/Research | Identified Exp. Targeting Computer 24181 | -3/Research | Spotted Striker 24181 | -3/Research | Spotted Striker 24209 | -3/Research | Entered Testing 24282 | -3/Testing | Found Prototype Hackware 24282 | -3/Testing | Identified System Mapper 24484 | -3/Testing | Build established: Scavenger-Mutant 24651 | -3/Testing | Found Prototype Energy Cannon 24651 | -3/Testing | Identified Null Cannon 24910 | -3/Testing | Found Prototype Energy Gun 24910 | -3/Testing | Identified Tachyon Dispersion Ray 25286 | -3/Testing | Destroyed 7 combat bots 25416 | -3/Testing | Found Prototype Processor 25416 | -3/Testing | Identified Spectral Analyzer 25437 | -3/Testing | System corruption reached 10% 25456 | -3/Testing | Entered Research 25456 | -2/Research | Evolved 2 slots: Power x1, Propulsion x1 25592 | -2/Research | Build established: Scavenger-Skirmisher 26196 | -2/Research | Destroyed 8 combat bots 26525 | -2/Research | Discovered new exit (range 3) 26526 | -2/Research | Identified exit to Access 26583 | -2/Research | Repaired Centrium Heavy Treads 26948 | -2/Research | Build established: Scavenger-Gunner 27322 | -2/Research | Spotted B-90 Cyclops 27409 | -2/Research | System corruption reached 10% 27900 | -2/Research | Spotted B-90 Cyclops 28030 | -2/Research | Discovered new exit (range 6) 28037 | -2/Research | Identified exit to Quarantine 28038 | -2/Research | Entered Quarantine 28070 | -2/Quarantine | Found Alien Impact Weapon 28348 | -2/Quarantine | Scanned by Researcher 28705 | -2/Quarantine | Cryocooling Duct disabled 28720 | -2/Quarantine | Ambient heat levels rising (+20) 28720 | -2/Quarantine | Non-combat units ordered to evacuate 28729 | -2/Quarantine | Discovered exit to Access (range 23) 28837 | -2/Quarantine | Found Alien Artifact 28952 | -2/Quarantine | Build established: Hacker-Skirmisher 29077 | -2/Quarantine | Found Alien Artifact 29139 | -2/Quarantine | Identified Core Stripper 29170 | -2/Quarantine | Spotted Fortress 29177 | -2/Quarantine | Destroyed Fortress 29186 | -2/Quarantine | Found Prototype Device 29186 | -2/Quarantine | Identified Exp. Force Field 29192 | -2/Quarantine | Found Prototype Reactor 29192 | -2/Quarantine | Identified Vortex Chain Reactor 29198 | -2/Quarantine | Found Prototype Device 29198 | -2/Quarantine | Identified Exp. EM Shield 29204 | -2/Quarantine | Found Prototype Device 29204 | -2/Quarantine | Identified Thermal Barrier 29240 | -2/Quarantine | Found Prototype Protection 29240 | -2/Quarantine | Identified Centrium Heavy Armor Plating 29354 | -2/Quarantine | Discovered new exit (range 6) 29354 | -2/Quarantine | Discovered new exit (range 7) 29360 | -2/Quarantine | Identified exit to Section 7 29362 | -2/Quarantine | Identified Core Reset Matrix 29362 | -2/Quarantine | Identified Subatomic Replicator 29362 | -2/Quarantine | Used Core Reset Matrix 29365 | -2/Quarantine | Used Subatomic Replicator to replicate Null Cannon 29366 | -2/Quarantine | Detected hypermatrix surge 29366 | -2/Quarantine | Sensed 12 artifacts in vicinity 29376 | -2/Quarantine | Identified exit to Protoforge 29379 | -2/Quarantine | Entered Protoforge 29380 | -2/Protoforge | Sensed 2 artifacts in vicinity 29553 | -2/Protoforge | Spotted Hotshot 29553 | -2/Protoforge | Spotted Hotshot 29581 | -2/Protoforge | Spotted Hotshot 29730 | -2/Protoforge | Superfortress began startup sequence 29930 | -2/Protoforge | Additional patrols dispatched to research labs 29964 | -2/Protoforge | Spotted Immortal 29966 | -2/Protoforge | Spotted Immortal 29983 | -2/Protoforge | Found Cep. Chromion Battery 29985 | -2/Protoforge | Found Cep. Antigrav Storage Unit 30167 | -2/Protoforge | Destroyed Immortal 30379 | -2/Protoforge | Destroyed Immortal 30468 | -2/Protoforge | Spotted Decapitator 30468 | -2/Protoforge | Spotted Decapitator 30468 | -2/Protoforge | Spotted Decapitator 30468 | -2/Protoforge | Spotted Decapitator 30470 | -2/Protoforge | Spotted Immortal 30473 | -2/Protoforge | Spotted Immortal 30493 | -2/Protoforge | Destroyed Immortal 30496 | -2/Protoforge | Destroyed Immortal 30532 | -2/Protoforge | Found Crosscalibrator 30616 | -2/Protoforge | Spotted V488-g 30616 | -2/Protoforge | Spotted V589-p 30616 | -2/Protoforge | Spotted V828-w 30684 | -2/Protoforge | Destroyed Decapitator 30701 | -2/Protoforge | Destroyed Decapitator 30703 | -2/Protoforge | Destroyed Decapitator 30709 | -2/Protoforge | Destroyed Decapitator 30810 | -2/Protoforge | Spotted V494-x 30833 | -2/Protoforge | Destroyed V494-x 30846 | -2/Protoforge | Found Cep. Network Penetrator 30848 | -2/Protoforge | Found Cep. Network Penetrator 31153 | -2/Protoforge | Spotted Decapitator 31153 | -2/Protoforge | Spotted Decapitator 31153 | -2/Protoforge | Spotted V759-o 31224 | -2/Protoforge | Found Cep. Lightning Penetrator 31243 | -2/Protoforge | Spotted V262-y 31246 | -2/Protoforge | Found Exp. Jetlance 31413 | -2/Protoforge | Spotted V816-p 31449 | -2/Protoforge | Spotted V219-l 31485 | -2/Protoforge | Destroyed V219-l 31491 | -2/Protoforge | Destroyed V816-p 31515 | -2/Protoforge | Lost 3 parts (3u) 31540 | -2/Protoforge | Found Cep. Biometal Exoskeleton 31680 | -2/Protoforge | Found Cep. Deflector Sword 31805 | -2/Protoforge | Spotted Decapitator 31816 | -2/Protoforge | Destroyed Decapitator 31830 | -2/Protoforge | Destroyed Decapitator 31832 | -2/Protoforge | Destroyed Decapitator 31869 | -2/Protoforge | Destroyed V759-o 31879 | -2/Protoforge | Found Exp. Weapon Cycler 31882 | -2/Protoforge | Found Imp. Powered Armor 31885 | -2/Protoforge | Found Cep. Zero-point Core 31905 | -2/Protoforge | Found Femtoactuators 31908 | -2/Protoforge | Found Mni. Quantum Capacitor 31912 | -2/Protoforge | Found Cep. Weapon Articulator 31915 | -2/Protoforge | Found Faulty Cep. Countertargeting System 31918 | -2/Protoforge | Found Faulty Cep. Melee Reflex Suite 31920 | -2/Protoforge | Found Faulty Cep. Melee Reflex Suite 31938 | -2/Protoforge | Found Faulty Cep. Melee Reflex Suite 31953 | -2/Protoforge | Found Faulty Cep. Hypertargeting System 31967 | -2/Protoforge | Found Faulty Cep. Hypertargeting System 32081 | -2/Protoforge | Spotted Decapitator 32081 | -2/Protoforge | Spotted Decapitator 32081 | -2/Protoforge | Spotted Decapitator 32081 | -2/Protoforge | Spotted Decapitator 32085 | -2/Protoforge | Destroyed Decapitator 32089 | -2/Protoforge | Destroyed Decapitator 32092 | -2/Protoforge | Destroyed Decapitator 32098 | -2/Protoforge | Destroyed Decapitator 32129 | -2/Protoforge | First assault squad dispatched 32158 | -2/Protoforge | Spotted V316-y 32168 | -2/Protoforge | Destroyed V316-y 32182 | -2/Protoforge | Found Faulty Cep. Rapid Grenade Launcher 32189 | -2/Protoforge | Spotted V582-m 32191 | -2/Protoforge | Build established: Hacker-Gladiator 32210 | -2/Protoforge | Destroyed V582-m 32214 | -2/Protoforge | Found Cep. Antimissile System 32287 | -2/Protoforge | Spotted Immortal 32287 | -2/Protoforge | Spotted Immortal 32332 | -2/Protoforge | Destroyed Immortal 32353 | -2/Protoforge | Destroyed Immortal 32363 | -2/Protoforge | Found Faulty Cep. Zero-point Core 32370 | -2/Protoforge | Found Faulty Cep. Zero-point Core 32394 | -2/Protoforge | Spotted V976-v 32451 | -2/Protoforge | Found Cep. Core Shell 32622 | -2/Protoforge | Destroyed V976-v 32647 | -2/Protoforge | Lost 6 parts (1p4u1w) 32746 | -2/Protoforge | Found Cep. RG22 Armor 32750 | -2/Protoforge | Found Cep. Core Shell 32765 | -2/Protoforge | Found Cep. Core Shell 32778 | -2/Protoforge | Found Faulty Exp. Force Field 32800 | -2/Protoforge | Found Cep. Hardlight Director 32803 | -2/Protoforge | Found Cep. Phase Shift Module 32850 | -2/Protoforge | Found Cep. Beam Splitter 32869 | -2/Protoforge | Spotted AP7-3 32912 | -2/Protoforge | Incoming assault squad redirected 32952 | -2/Protoforge | Spotted AP7-3 33012 | -2/Protoforge | Destroyed AP7-3 33018 | -2/Protoforge | Destroyed AP7-3 33148 | -2/Protoforge | Incoming assault squad redirected 33153 | -2/Protoforge | Incoming assault squad redirected 33159 | -2/Protoforge | Incoming assault squad redirected 33253 | -2/Protoforge | Found Cep. Navigation Harness 33263 | -2/Protoforge | Found Transdimensional Reconstructor 33330 | -2/Protoforge | Core integrity fell below 50% 33644 | -2/Protoforge | Incoming assault squad redirected 33649 | -2/Protoforge | Incoming assault squad redirected 33732 | -2/Protoforge | Lost 3 parts (1n1u1w) 33752 | -2/Protoforge | High security lockdown imminent 33801 | -2/Protoforge | Spotted EXE-6 33802 | -2/Protoforge | Spotted EXE-6 33808 | -2/Protoforge | Destroyed 12 combat bots 33822 | -2/Protoforge | Spotted Decapitator 33826 | -2/Protoforge | Spotted Decapitator 33832 | -2/Protoforge | High security lockdown engaged 33868 | -2/Protoforge | Destroyed EXE-6 33875 | -2/Protoforge | Destroyed EXE-6 33878 | -2/Protoforge | Found Exp. Core Analyzer 33893 | -2/Protoforge | Lost 3 parts (1p2u) 34019 | -2/Protoforge | Spotted AP7-3 34019 | -2/Protoforge | Spotted AP7-3 34025 | -2/Protoforge | System corruption reached 30% 34026 | -2/Protoforge | Core integrity fell below 20% 34029 | -2/Protoforge | Spotted Striker 34039 | -2/Protoforge | Warped through subspace 34070 | -2/Protoforge | Lost 6 parts (3p1n1u1w) 34121 | -2/Protoforge | Destroyed Striker 34139 | -2/Protoforge | Spotted EXE-6 34148 | -2/Protoforge | Spotted Investigator 34166 | -2/Protoforge | Destroyed Investigator 34196 | -2/Protoforge | Spotted Striker 34196 | -2/Protoforge | Spotted Executioner 34196 | -2/Protoforge | Spotted EXE-6 34207 | -2/Protoforge | Destroyed 12 combat bots 34207 | -2/Protoforge | Destroyed by G-73 Enforcer with Phase Gun Last Messages --------------- payload. 34204_ P-80 Master unfolds itself. 34204_ E-15 Imp unfolds itself. 34204_ N-04 Retriever collects Imp. System Guard. 34204_ N-04 Retriever collects Segregator. 34204_ Slug penetrates FP Insight Station. 34204_ FP Insight Station damaged. 34204_ Slug penetrates Forge Plexus. 34205_ Knocked back. 34206_ C-30 ARC bursts open, deploying its payload. 34206_ G-73 Enforcer unfolds itself. 34206_ L-61 Swordsman unfolds itself. 34206_ G-73 Enforcer unfolds itself. 34206_ Femtoactuators destroyed. 34206_ E-15 Imp destroyed. 34207_ Exp. Armored Exoskeleton destroyed. 34207_ Cep. Zero-point Core destroyed. 34207_ M-36 Artificer repairs M-36 Artificer. Map ----- +----------------------------------------------------+ | ?????##%## " "" " """ % | | ###### #"# " " "" """""" % | | = / "" % | | %!% / "" "" """ " | | % % / """"" "" " """" | | ###### ### " " " | | ?????###?# " " "" """" " | | ?????????# """"" "" "" n " | | ?????????# " "" " """"""""" | | ?????????# """" "" """"""""""""""" | | ?????????# """" "" """"""""""""""""" | | ?????????# " """"""""""""""""""" | | ?????????# "" " """""""""""""""""""" | | ?????????# " """"""""""""""""""""" | | ?????????# " "" """""""""""""""""""""" | | ?????????# """"" " """"""""""""""""""""""" | | ?????????# "" "" pp " """"""""""""""""""""""" | | ?????????# "" " p "" """"""""""""""""""""""" | | ?????????# "%" "" " """""""""""""""""""""""" | | ?????????# % "" % " """""""""""""""""""""""" | | ?????????# " g i """""""""""""""""""""""" | | ?????????# ig ""KpE """""""""""""""""""""""" | | ?????????# g%gCl""" % """""""""""""""""""""""" | | ?????????# g ggg """""""""""""""""""""""" | | ?????????# m"g % % " = """""""""""""""""""""""" | | ?????????# " """ %"""%"=%@"""""""""""""""""""""""" | | ?????????# "" % m %% % """""""""""""""""""""""" | | ?????????# m %"b %""""""""""""""""""""""" | | ?????????# %% b """"""""""""""""""""""" | | ?????????# """"%%" "" """"""""""""""""""""""" | | ?????????# """ " " % """""""""""""""""""""" | | ?????????# " " n """"""""""""""""""""" | | ?????????# "" % """""""""""""""""""" | | ?????????# "" "" "" """"""""""""""""""" | | ?????????# "" "" " " """"""""""""""""" | | ?????????# "" """ "" """"""""""""""" " | | ?????????# " " """"""""" " | | ?????????# " " """ "" " | | ?????????# " " """ "" " """"" " | | ?????????# " """ " " | | ?????????# "" " " """" """ | | ?????????# " " "" " """ """ "" """ | | ?????????# " " """" """ " | | ?????????# "" " " """ " """ " | | ?????????# "" ?" " " " " " | | ?????????# " ? "" " """" | | ?????????# "" "" ? " """"" "" """ " | | ?????????# ?" ? " " " " | | ?????????# ? ?" "" " | | ?????????# ? ?" "" """""""""" | +----------------------------------------------------+ Best States ------------- Heat Dissipation 133 Coolant Potential 120 Energy Generation 73 Energy Capacity 2030 Matter Stores 300 Matter Capacity 300 Sight Range 24 Robot Scan Range 20 Terrain Scan Density 10 Jamming Range 14 Armor Coverage 900 Resistance: TH 75 Resistance: EM 75 Core Shielding 90 Weapon Shielding 90 Point Defense Rating 480 Melee Speed Boost 50 Phase Shifting 25 Evasion (%) 80 Targeting Accuracy 12 Melee Accuracy 8 Core Analysis 8 Recoil Reduction 6 Matter Filtering 50 Salvage Targeting 1 Offensive Hacking 50 Item Schematics ----------------- Coolant Network | -2/Protoforge | Archive Cld. Gravmag System | -2/Protoforge | Archive Exp. Energy Well | -2/Protoforge | Archive Tactical Quantum Warhead | -2/Protoforge | Archive Enh. Armored Heavy Treads | -2/Protoforge | Archive Exp. Signal Interpreter | -2/Protoforge | Archive Hvy. Dispersion Rifle | -2/Protoforge | Archive Graviton Cannon | -2/Protoforge | Archive Imp. Matter Neutralizer | -2/Protoforge | Archive Prc. Matter Filter | -2/Protoforge | Archive Exp. Matter Compressor | -2/Protoforge | Archive Hvy. Proton Cannon | -2/Protoforge | Archive Cld. Linear Gravjet | -2/Protoforge | Archive Cld. Plasma Rifle | -2/Protoforge | Archive Cld. Proton Cannon | -2/Protoforge | Archive Exp. Flexi-carbon Leg | -2/Protoforge | Archive Robot Schematics ------------------ R-10 Processor | -2/Protoforge | Archive G-73 Enforcer | -2/Protoforge | Archive Fabricated ------------ Nothing Repaired ---------- Heat Sink | 6% | -9/Materials Lgt. Treads | 36% | -9/Materials Spread Laser | 25% | -9/Materials Exp. Sensor Array | 62% | -9/Materials Spread Laser | 60% | -9/Materials Autogun | 41% | -9/Materials Arm. Treads | 53% | -8/Materials Arm. Treads | 71% | -8/Materials Arm. Treads | 73% | -8/Materials Adv. Treads | 74% | -8/Storage Adv. Treads | 6% | -8/Storage Imp. Heat Sink | 35% | -8/Storage Adv. Beam Rifle | 50% | -8/Storage Imp. Medium Treads | 18% | -5/Factory Imp. Cooling System | 8% | -5/Factory Centrium Heavy Treads | 11% | -2/Research Alien Tech Used ----------------- Core Expander Integrated Dissipator Core Stripper Core Reset Matrix Subatomic Replicator Transdimensional Reconstructor Achievements -------------- None Challenges ------------ None Game ------ Seed SmartbombTripodVibroblade Manual? 0 Play Time 07:06:55 Cumulative 73.0 hours Start 2025.05.09 @ 01:51:04 End 2025.05.10 @ 02:11:27 Sessions 9 Manual Loads 0 Difficulty Rogue Special Mode None Game No. 18 Rogue 18 Adventurer 0 Explorer 0 Win Type - Total 5 Types 0/0/3/0/0/0/2/0/0/0 Lore% 42 Gallery% 47 Achievement% 64 Wizard Run 0 Options --------- Layout 1 ASCII 0 Keyboard 0 Movement Arrows Keybinds 0 Fullscreen 2 Font 24/Terminus Map View 50x35 Zoom Use 0% Tactical HUD 1 Map Filters NONE Filters NONE Steam 1 RUN: cb3130e8-9237-4fd4-a252-af52ecd6afc0